Workbook

Sheet 预算汇总表（打印） (hidden)
A1: 预算汇总表
A2: 序号 | B2: 名称 | C2: 主要技术参数/服务内容 | D2: 费用类型 | E2: 单位 | F2: 数量 | G2: 单价（元） | H2: 合价（元） | I2: 备注
A3: 一 | B3: 网络设备
A4: 1 | B4: 服务器接入交换机 | C4: 1、使用国产自主安全CPU和交换芯片，千兆电接口≥48个，10G的SFP+光接口≥6个，100G光接口≥2个，配置模块化冗余电源； 2、交换容量≥600Gbps；包转发率≥370Mpps； 3、支持静态路由、RIP、OSPF、BGP等动态路由协议； 4、支持MPLS L3 VPN，支持虚拟化功能； 5、支持配置文件加密，保护设备配置信息泄漏，支持Telnet、Console、SNMP等管理方式。 | D4: 一次性 | E4: 台 | F4: 10 | G4: 50000 | H4: =G4*F4 -> 500000
A5: 2 | B5: 服务器接入交换机 | C5: 1、使用国产自主安全CPU和交换芯片，交换容量≥160Gbps；包转发率≥100Mpps； 2、千兆电接口≥24个，SFP千兆光接口≥4个，SFP+万兆光接口≥4个，配置1+1冗余模块化电源； 3、支持静态路由、RIP路由协议； 4、支持Telnet、Console、SNMP等管理方式，支持配置文件国密算法加密，防护设备配置环境信息泄漏。 | D5: 一次性 | E5: 台 | F5: 1 | G5: 20000 | H5: 20000
A6: 二 | B6: 服务器设备
A7: 1 | B7: 服务器 | C7: CPU：主频≥1.45GHz，核数≥4 内存：容量≥32GB 硬盘：容量≥2TB， 盘位数不少于8盘位； 支持RAID 0/1/5 服务：提供3年整机质保，7*24小时电话响应支持。 | D7: 一次性 | E7: 台 | F7: 87 | G7: 70000 | H7: 6090000
A8: 2 | B8: HBA卡 | C8: 用于连接服务器&光纤交换机；接口类型：16Gbps； | D8: 一次性 | E8: 个 | F8: 43 | G8: 8500 | H8: 365500
A9: 3 | B9: 负载均衡 | C9: 标配8个固定千兆电口（RJ45）, 4个万兆位SFP+光纤端口，可支持4口千兆电口或光口扩展支持IPv4/v6、NAT、MPLS、OSPF、RIP、动态/静态路由等技术4层吞吐量大于等于10G并发会话数大于1200万，四层每秒新建会话数大于35万，新建会话数大于18万。对连接时间较长的应用业务，可主动拆除连接，按照预定策略重新负载新建连接采用国产交换芯片的专用硬件平台，软件平台拥有国产内核使用授权，内存为32GB DDR3 ECC，256GB固态硬盘，交流供电，支持1+1冗余； | D9: 一次性 | E9: 台 | F9: 2 | G9: 300000 | H9: 600000
A10: 三 | B10: 存储设备
A11: 1 | B11: 光纤交换机 | C11: 48口16Gbps FC交换机；48端口激活；满配16Gbps多模光模块，双热插拔冗余电源；带风扇； | D11: 一次性 | E11: 台 | F11: 2 | G11: 112000 | H11: =G11*F11 -> 224000
A12: 2 | B12: 备份一体机 | C12: 机架式国产处理器（核心数≥8核，主频≥1.5GHz），不小于64G DDR3 RAM，50TB存储空间，4*1GE电口，含备份管理软件，支持无限备份客户端数量，支持数据库备份和回复，实现操作系统下的整机备份和裸机恢复，支持文件备份和恢复。支持对主流及国产化数据库周期备份、增量备份、重删等功能，3年质保服务； | D12: 一次性 | E12: 台 | F12: 1 | G12: 600000 | H12: 600000
A13: 3 | B13: 磁盘阵列 | C13: 双控制器（国产CPU），国产操作系统，配置高速缓存≥256GB，配置8个1Gb iSCSI接口、8个16Gbps FC接口，配置存储容量约50T SAS硬盘； | D13: 一次性 | E13: 台 | F13: 2 | G13: 450000 | H13: 900000
A14: 四 | B14: 安全设备
A15: 1 | B15: 防火墙 | C15: 标准2U机箱，冗余电源；产品支持透明传输、路由转发模式部署，支持路由设置、高可用性等组网与部署能力；提供包过滤、地址转换、状态检测、动态开放端口、带宽管理、连接数控制等网络层访问控制功能；提供应用类型控制、应用关键内容控制等应用层控制功能；提供拒绝服务攻击防护、恶意代码防护、应用攻击防护等功能； | D15: 一次性 | E15: 台 | F15: 2 | G15: 105400 | H15: =G15*F15 -> 210800
A16: 2 | B16: 病毒防治系统 | C16: 含1套管理平台；不少于4463个终端授权；用于服务器端和终端的恶意代码防范、病毒入侵防范； | D16: 一次性 | E16: 套 | F16: 1 | G16: =1.4*10000+400*4463 -> 1799200 | H16: 1799200
A17: 3 | B17: 日志审计 | C17: 2U标准机架式，冗余电源，专用千兆硬件平台和安全操作系统，6个千兆电口，1个管理口，标配采用Raid5，有效存储容量4TB。提供采集各种不同厂商的安全设备、网络设备、主机、操作系统、以及各种应用系统产生的日志信息，汇集到审计中心，通过解析过滤归并后统一呈现，支持自定义条件查询和策略查询，支持深度关联分析自定义关联规则进行审计分析，支持告警和自定义报表等功能。默认支持100个审计对象授权，综合处理性能达6300EPS； | D17: 一次性 | E17: 台 | F17: 1 | G17: 300000 | H17: 300000
A18: 4 | B18: 数据库审计 | C18: 能够对网络环境中的数据库管理系统的数据操作、结构操作和用户更改等行为进行审计和分析。提供了按条件查询审计记录、统计分析、潜在危害分析、事件分级和告警响应等功能；国产CPU，国产操作系统，内存8GB，硬盘1TB，网络接口：1个管理口、5个千兆电口、4个千兆光口、2个万兆光口；标准机架式机箱； | D18: 一次性 | E18: 台 | F18: 1 | G18: 150000 | H18: 150000
A19: 五 | B19: 终端及外设
A20: 1 | B20: 安全可靠终端（台式） | C20: 国产化CPU； 支持国产化操作系统； CPU：主频≥1.8GHz，核数≥4 内存：容量≥8GB 硬盘：容量≥256GB，SSD 独立显卡 显示器：≥23.8英寸 服务：3年整机质保，提供1年上门服务，7*24小时电话响应支持。 | D20: 一次性 | E20: 台 | F20: =#REF! ->  | G20: 6500 | H20: =G20*F20 ->  | I20: 2526
A21: 2 | B21: 安全可靠终端（笔记本） | C21: 国产CPU； 支持国产操作系统； CPU：1.2GHZ； 内存：≥4GB； 硬盘：≥128GB,SSD； 独显，显示器：≥14英寸 服务：3年整机质保，提供1年上门服务，7*24小时电话响应支持。 | D21: 一次性 | E21: 台 | F21: =#REF! ->  | G21: 8500 | I21: 133
A22: 3 | B22: 彩色打印机 | C22: A4彩色多功能打印扫描一体机，具备文字文档打印、图片打印、份数设置、范围设置、页边距设置、缩放打印设置、打印队列管理等基本功能，支持彩色扫描/复印,双面打印。 平均一分钟打印不小于24页；符合GB/T17540-2017《台式激光打印机通用规范》、GB／T28166-2011《馈纸式扫描仪通用规范》和基础通用产品打印机、扫描仪测试规范的要求。 处理器数量≥1，处理器主频≥800MHz,内存≥512MB； 提供3年原厂技术设备免费保修及维护服务，7*24小时电话响应支持。根据CPU芯片和操作系统升级以及安可替代工程产品目录更新，提供3年内免费适配服务。 | D22: 一次性 | E22: 台 | F22: =#REF! ->  | G22: 9800
A23: 5 | B23: 红黑打印机 | C23: A4红黑单功能打印机，具备文字文档打印、图片打印、份数设置、范围设置、页边距设置、缩放打印设置、打印队列管理等基本功能，支持网络打印、红黑打印。 平均一分钟打印不小于28页；符合GB/T17540-2017《台式激光打印机通用规范》和基础通用产品打印机测试规范的要求。 处理器数量≥1，处理器主频≥266MHz,内存≥128MB 提供3年免费升级服务，7*24小时电话响应支持。根据CPU芯片和操作系统升级以及安可替代工程产品目录更新，提供3年内免费适配服务。 | D23: 一次性 | E23: 台 | F23: =#REF! ->  | G23: 6200
A24: 六 | B24: 系统软件
A25: 1 | B25: 笔记本操作系统 | C25: 终端操作系统；兼容国产化CPU；具备设备管理、文件系统管理、用户管理、个性化设置等基本功能。 | D25: 一次性 | E25: 套 | F25: 398 | G25: 600 | H25: =G25*F25 -> 238800
A26: 2 | B26: 台式机操作系统 | C26: 终端操作系统；兼容国产化CPU；具备设备管理、文件系统管理、用户管理、个性化设置等基本功能。 | D26: 一次性 | E26: 套 | F26: 3978 | G26: 600 | H26: 2386800
A27: 3 | B27: 服务器操作系统 | C27: 服务器操作系统；兼容国产化CPU；具备文件管理、设备管理、日志管理、服务管理、进程和监控管理、网络管理、资源管理、软件包管理、硬盘管理等基本功能；提供语言支持工具、文件共享工具、集成开发平台等共享服务工具； | D27: 一次性 | E27: 套 | F27: 87 | G27: 7500 | H27: 652500
A28: 4 | B28: 数据库 | C28: 具备数据存储、访问控制、身份鉴别、安全审计和数据备份恢复等功能。产品部署在服务器，以后以服务形式运行，数据库管理员及用户在管理主机上通过图形化管理工具或命令行工具，可实现对数据对象（表、视图、约束、索引、触发器、存储过程等）的配置管理；开发人员可通过标准化数据库访问接口，开发基于数据库的应用系统和软件产品。 提供1年免费升级服务，7*24小时电话响应支持。根据CPU芯片和操作系统审计以及安可替代工程产品目录更新，提供3年内免费适配服务。 | D28: 一次性 | E28: 套 | F28: 44 | G28: 120000 | H28: 5280000
A29: 5 | B29: 应用中间件 | C29: 具备Web应用、EJB应用、虚拟主机、应用服务器集群、身份验证、日志审计等基本工作，提供类库管理、集成环境管理、图形化监控、JVM配置、垃圾回收配置等工具，支持实例部署、数据库连接服务，为业务系统提供运行环境。 提供1年免费升级服务，7*24小时电话响应支持。根据CPU芯片和操作系统审计以及安可替代工程产品目录更新，提供3年内免费适配服务。 | D29: 一次性 | E29: 套 | F29: 43 | G29: 50000 | H29: 2150000
A30: 6 | B30: HA | C30: 秒级容错技术能够有效地使被保护服务资源在极端的时间内完成切换任务，满足应用的持续性服务要求；任何一个节点出现故障，都可以在极短的时间内进行自动切换，当故障排除后，服务自动回迁，提供7*24小时永不停机的企业级应用可靠保障；支持双机热备，双机互备，多机备份等多种运行保护方式，用以满足各种应用保护需求； | D30: 一次性 | E30: 套 | F30: 16 | G30: 36000 | H30: 576000
A31: 7 | B31: 数据库读写分离组件 | C31: 支持对国产化数据库进行读写分离管理；支持国产化操作系统部署； | D31: 一次性 | E31: 套 | F31: 3 | G31: 80000 | H31: 240000
A32: 8 | B32: 运维管理软件 | C32: 支持国产化操作系统部署环境；实现安全可靠的网络、服务器、中间件、业务系统等统一管理运维； | D32: 一次性 | E32: 套 | F32: 1 | G32: =#REF! -> 
A33: 10 | B33: 流式软件 | C33: 具备主界面、文件管理、页面设置、视图管理、编辑管理、插入管理、格式管理、工具、表格管理、对象管理、审阅管理、引用管理、插件管理、打印管理等基本功能，提供文字处理、电子表格、文档演示三大应用，支持PDF阅读和流版转换，支持国内外文档标准规范，兼容国内外主流流式软件。提供1年免费升级服务，7*24小时电话响应支持。根据CPU芯片和操作系统升级以及安可替代工程产品目录更新，提供3年内免费适配服务。 | D33: 一次性 | E33: 套 | F33: 4376 | G33: 580 | H33: 2538080
A34: 11 | B34: 版式软件 | C34: 具备主页管理、文件管理、页面管理、注释管理、试图管理、编辑管理、语义管理、签章管理、插件管理、打印管理等基本功能，支持水印、流版转换，兼容国内外主流版式软件。并可作为浏览器组件集成到业务应用系统中，实现文件签批、模板套打等公务扩展功能。 提供1年免费升级服务，7*24小时电话响应支持。根据CPU芯片和操作系统升级以及安可替代工程产品目录更新，提供3年内免费适配服务。 | D34: 一次性 | E34: 套 | F34: 4376 | G34: 520 | H34: 2275520
A35: 七 | B35: 应用软件
A36: 1 | B36: 应用系统迁移改造 | C36: 对项目包含的17个电子公文系统进行迁移改造，主要包括系统迁移、数据迁移、以及浏览器适配等工作。 | D36: 一次性 | E36: 套 | F36: 1 | G36: ='实施方案-系统迁移费'!I144 -> 6394000 | H36: =G36*F36 -> 6394000
B37: 小计 | H37: =SUM(H4:H36) -> 
A38: 八 | B38: 系统集成费
A39: 1 | B39: 系统集成费 | C39: 根据中办安全可靠替代系统集成标准，取硬件设备购置费、软件购置费与应用开发费之和的8%作为系统集成费 | D39: 一次性 | E39: 套 | F39: 1 | G39: =H37*0.08 ->  | H39: =F39*G39 -> 
A40: 九 | B40: 工程建设其他费用
A41: 1 | B41: 项目管理费 | C41: 参考《基本建设财务管理规定》财建〔2016〕504号计算 | D41: 一次性 | E41: 套 | F41: 1 | G41: =H37*0.02 -> 
A42: 2 | B42: 工程监理费 | C42: 参考《建设工程监理与相关服务收费管理规定》（发改价格[2007]670号）计取 | D42: 一次性 | E42: 套 | F42: 1 | G42: =H37*0.022 -> 
A43: 3 | B43: 招标代理服务费 | D43: 一次性 | E43: 套 | F43: 1 | G43: =H37*0.0032 -> 
A44: 4 | B44: 系统测评费 | C44: 依据软件开发建设相关文档，如需求规格说明书等，GB/T 25000.51-2016《系统与软件工程 系统与软件质量要求和评价（SQuaRE） 第51部分：就绪可用软件产品（RUSP）的质量要求和测试细则》，对17个迁移改造的信息系统主要进行系统的兼容性测试。 | D44: 一次性 | E44: 套 | F44: 1 | G44: 850000 | H44: 850000 | I44: 每个系统5万,17个业务系统
A45: 5 | B45: 安全测评费 | C45: 根据《信息安全技术 网络安全等级保护基本要求》（GB/T 22239-2019）、《信息安全技术 网络安全等级保护测评要求》（GB/T 28448-2019）、《信息安全技术 网络安全等级保护测评过程指南》（GB/T 22449-2018）、《信息安全技术 安全可靠应用信息系统等级保护测评要求（试行）》、《信息安全技术 安全可靠应用信息系统等级保护基本要求（试行）》等标准开展测评工作，测评内容包括安全物理环境、安全通信网络、安全区域边界、安全计算环境、安全管理中心、安全管理制度、安全管理机构、安全管理人员、安全建设管理、云计算安全扩展要求、移动互联安全扩展要求、大数据安全扩展要求等。 | D45: 一次性 | E45: 套 | F45: 1 | G45: =H37*0.028 -> 
B46: 小计 | H46: =SUM(H39:H45) -> 
A47: 十 | B47: 工程预备费
A48: 1 | B48: 工程预备费 | C48: (硬件设备购置费+软件购置费+应用系统开发费+系统集成费+工程建设其它费)×预备费率，预备费率取定为2%。 | D48: 一次性 | E48: 套 | F48: 1 | G48: =SUM(H46+H37)*0.02 ->  | H48: =F48*G48 -> 
B49: 小计 | H49: =SUM(H48) -> 
A50: 合计 | H50: =SUM(H37+H46+H49) -> 

Sheet 功能清单
A1: 17应用系统功能清单
A2: 一级功能模块 | B2: 二级功能模块
A3: 顺义区财政局综合办公平台
A4: 内网门户
A11: 公文管理
A18: 综合办公
A25: 政务公开
A32: 政策法规
A39: 机关党建
A46: 即时通讯
A53: 绩效考核
A60: 个人办公
A67: 考勤管理
A74: 电子邮件
A81: 顺义区政协智慧政协系统
A82: 个人工作
A91: 日常办公
A99: 公文管理
A108: 政策法规
A117: 顺义区委组织部智慧组工系统
A118: 首页
A127: 个人办公
A136: 办公管理
A145: 公文管理
A154: 督察督办
A163: 学习园地
A172: 会议管理
A181: 车辆管理
A190: 顺义数字教育公共服务平台
A191: 通知
A200: 会议通知
A209: 收文管理
A218: 发文管理
A227: 日程安排
A236: 在线订车
A245: 会议室预约
A254: 考勤管理
A263: 工资管理
A272: 周历
A281: 值班安排
A290: 绩效管理
A299: 编外人员管理
A308: 预约签到
A317: 顺义区人大常委会协同办公平台
A318: 系统管理
A327: 文件中心
A336: 党建管理
A345: 办公用品
A354: 日常办公
A363: 个人工作
A372: 工作管理
A381: 公文管理
A390: 门户网站管理
A391: 系统集成
A392: 顺义区天竺综合保税区管理委员会办公自动化整合系统
A393: 公文管理系统
A407: 门户支撑平台
A421: 机关事务管理子系统
A435: 机关党建管理子系统
A449: 移动办公管理
A459: 顺义区卫生健康委协同办公系统
A460: 首页
A469: 领导办公
A478: 日常办公
A487: 公文管理
A496: 我的邮箱（即办公邮箱）
A505: 督察督办
A514: 会议管理
A523: 车辆管理
A532: 档案管理
A541: 财务审计
A550: 短信发送
A559: 考勤管理
A568: 重点工作
A577: 政务公开
A586: 投票管理
A595: 基层单位通知
A604: 电子政务办公服务平台
A605: 领导桌面
A614: 政务通知
A623: 行政办公
A632: 个人工作台
A641: 电子政务办公门户站点
A650: 便民电话
A659: 电子公文
A668: 信息 工作
A677: 会议管理
A686: 区委督查
A695: 区政府督查
A704: 基础平台管理
A713: 信息中心 （协同办公）
A722: 统一认证管理系统
A723: 统一身份管理
A732: 授权审核
A741: 安全审计
A746: 访问控制
A751: 单点登录
A754: 数据同步
A757: 顺义区交通局综合办公平台
A758: 门户网站
A767: 个人办公
A776: 行政处室
A785: 行业处室
A786: 我的文件夹
A787: 行业科室职责
A788: 系统参数维护
A789: 顺义区水务局OA办公平台
A790: 首页门户
A799: 个人办公
A800: 审批流转
A809: 公文发文
A818: 公文收文
A827: 内部邮件
A836: 文档中心
A845: 信息发布
A846: 工作任务
A847: 工作中心
A848: 综合行政
A849: 网上交流
A850: 督查督办
A851: 值班管理
A852: 北京市顺义区统计局办公自动化
A853: 审批流转
A862: 内部邮件
A871: 公文管理
A880: 首页门户
A881: 个人办公
A882: 请假报备
A883: 用章用车
A884: 合同管理
A885: 人员管理
A886: 资金申请
A887: 会议室预定
A888: 薪酬管理
A889: 顺义区民政局办公平台
A890: 首页
A899: 事项申请（事项报审）
A908: 通知公告（即通知公文）
A917: 通讯录
A926: 工作管理
A935: 内部邮箱
A944: 流程管理
A953: 领导日程安排
A962: 会议管理
A971: 值班管理
A980: 学习园地
A989: 请假管理
A998: 督察督办
A1007: 局长办公会议题管理
A1016: 个人中心
A1025: 顺义区人力社保局办公平台
A1026: 协同工作
A1035: 首页门户
A1044: 会议管理
A1053: 信息公告
A1062: 顺义区投资中心办公系统
A1063: 首页门户
A1071: 个人办公
A1079: 公文流转
A1087: 信息公告
A1095: 工作日志
A1103: 文档中心
A1111: 会议预定
A1119: 顺义区委网信办互联网工作平台
A1120: 首页
A1128: 待办工作
A1136: 已办工作
A1144: 文件传阅
A1152: 资料传送
A1160: 工作日志
A1168: 来电记录
A1176: 去电记录
A1184: 值班表
A1192: 舆情管理
A1200: 文档中心
A1208: 参会记录
A1216: 发文申请
A1224: 顺义区卫生健康委协同办公系统
A1225: 档案管理
A1233: 行政办公
A1241: 数据共享
A1249: 信息发布
A1257: 督查督办
A1265: 任务管理
A1273: 知识管理
A1281: 合同管理
A1289: 系统设置
A1297: 总计

Sheet 实施方案-系统迁移费 (hidden)
A1: 实施方案-系统迁移费用
A2: 序号 | B2: 迁移应用系统名称 | C2: 迁移工作内容 | D2: 时间（月） | E2: 投入人数 | F2: 工作量（人/月） | G2: 单价（每人月） | H2: 金额 | I2: 合计 | J2: 备注
A3: 1 | B3: 顺义区财政局综合办公平台 | C3: 网站 | D3: 1 | E3: 1 | F3: =D3*E3 -> 1 | G3: =人月成本 -> 20000 | H3: =G3*F3 -> 20000 | I3: =SUM(H3:H15) -> 280000
C4: 公文管理 | D4: 2 | E4: 2 | F4: 4 | G4: 20000 | H4: 80000
C5: 公文查询 | D5: 1 | E5: 1 | F5: 1 | G5: 20000 | H5: 20000
C6: 事务管理 | D6: 1 | E6: 1 | F6: 1 | G6: 20000 | H6: 20000
C7: 会议室管理 | D7: 0.5 | E7: 1 | F7: 0.5 | G7: 20000 | H7: 10000
C8: 车辆管理 | D8: 0.5 | E8: 1 | F8: 0.5 | G8: 20000 | H8: 10000
C9: 即时通讯 | D9: 1 | E9: 1 | F9: 1 | G9: 20000 | H9: 20000
C10: 站内信息 | D10: 0.5 | E10: 1 | F10: 0.5 | G10: 20000 | H10: 10000
C11: 个人办公管理 | D11: 0.5 | E11: 1 | F11: 0.5 | G11: 20000 | H11: 10000
C12: 办公用品申请 | D12: 0.5 | E12: 1 | F12: 0.5 | G12: 20000 | H12: 10000
C13: 流程管理 | D13: 1 | E13: 1 | F13: 1 | G13: 20000 | H13: 20000
C14: 数据迁移 | D14: 1 | E14: 1 | F14: 1 | G14: 20000 | H14: 20000
C15: 终端适配 | D15: 1.5 | E15: 1 | F15: 1.5 | G15: 20000 | H15: 30000
A16: 2 | B16: 顺义区政协智慧政协系统 | C16: 政务办公 | D16: 1 | E16: 2 | F16: 2 | G16: 20000 | H16: 40000 | I16: =SUM(H16:H23) -> 460000
C17: 政务通知 | D17: 1 | E17: 1 | F17: 1 | G17: 20000 | H17: 20000
C18: 来文办理 | D18: 2 | E18: 2 | F18: 4 | G18: 20000 | H18: 80000
C19: 文书档案 | D19: 1 | E19: 1 | F19: 1 | G19: 20000 | H19: 20000
C20: 政府督查 | D20: 1.5 | E20: 2 | F20: 3 | G20: 20000 | H20: 60000
C21: 协同办公 | D21: 2 | E21: 2 | F21: 4 | G21: 20000 | H21: 80000
C22: 数据迁移 | D22: 2 | E22: 2 | F22: 4 | G22: 20000 | H22: 80000
C23: 终端适配 | D23: 2 | E23: 2 | F23: 4 | G23: 20000 | H23: 80000
A24: 3 | B24: 区委组织部智慧组工系统 | C24: 政务办公 | D24: 1 | E24: 2 | F24: 2 | G24: 20000 | H24: 40000 | I24: =SUM(H24:H31) -> 460000
C25: 政务通知 | D25: 1 | E25: 1 | F25: 1 | G25: 20000 | H25: 20000
C26: 来文办理 | D26: 2 | E26: 2 | F26: 4 | G26: 20000 | H26: 80000
C27: 文书档案 | D27: 1 | E27: 1 | F27: 1 | G27: 20000 | H27: 20000
C28: 政府督查 | D28: 1.5 | E28: 2 | F28: 3 | G28: 20000 | H28: 60000
C29: 协同办公 | D29: 2 | E29: 2 | F29: 4 | G29: 20000 | H29: 80000
C30: 数据迁移 | D30: 2 | E30: 2 | F30: 4 | G30: 20000 | H30: 80000
C31: 终端适配 | D31: 2 | E31: 2 | F31: 4 | G31: 20000 | H31: 80000
A32: 4 | B32: 顺义数字教育公共服务平台 | C32: 发文管理 | D32: 3 | E32: 3 | F32: 9 | G32: 20000 | H32: 180000 | I32: =SUM(H32:H38) -> 674000
C33: 收文管理 | D33: 1.75 | E33: 2 | F33: 3.5 | G33: 20000 | H33: 70000
C34: 考勤管理 | D34: 1.5 | E34: 2 | F34: 3 | G34: 20000 | H34: 60000
C35: 工资管理 | D35: 1.5 | E35: 3 | F35: 4.5 | G35: 20000 | H35: 90000
C36: 资料管理 | D36: 2 | E36: 3 | F36: 6 | G36: 20000 | H36: 120000
C37: 数据迁移 | D37: 2 | E37: 2 | F37: 4 | G37: 20000 | H37: 80000
C38: 终端适配 | D38: 2 | E38: 2 | F38: 4 | G38: 18500 | H38: 74000
A39: 5 | B39: 顺义区人大常委会协同办公平台 | C39: 公文审批 | D39: 2 | E39: 2 | F39: 4 | G39: =人月成本 -> 20000 | H39: 80000 | I39: =SUM(H39:H45) -> 260000
A40: 5 | B40: 顺义区人大常委会协同办公平台 | C40: 公文管理 | D40: 1.5 | E40: 2 | F40: 3 | G40: 20000 | H40: 60000
C41: 办公用品领用 | D41: 1 | E41: 1 | F41: 1 | G41: 20000 | H41: 20000
C42: 请假销假 | D42: 1 | E42: 1 | F42: 1 | G42: 20000 | H42: 20000
C43: 用车申请 | D43: 1 | E43: 1 | F43: 1 | G43: 20000 | H43: 20000
C44: 数据迁移 | D44: 1.5 | E44: 1 | F44: 1.5 | G44: 20000 | H44: 30000
C45: 终端适配 | D45: 1.5 | E45: 1 | F45: 1.5 | G45: 20000 | H45: 30000
A46: 6 | B46: 顺义区天竺综合保税区管理委员会办公自动化整合系统 | C46: 公文管理 | D46: 3 | E46: 3 | F46: 9 | G46: 20000 | H46: 180000 | I46: =SUM(H46:H52) -> 680000
C47: 信息栏目 | D47: 1.75 | E47: 2 | F47: 3.5 | G47: 20000 | H47: 70000
C48: 会议管理 | D48: 1.5 | E48: 2 | F48: 3 | G48: 20000 | H48: 60000
C49: 政务信息 | D49: 1.5 | E49: 3 | F49: 4.5 | G49: 20000 | H49: 90000
C50: 移动办公 | D50: 2 | E50: 3 | F50: 6 | G50: 20000 | H50: 120000
C51: 数据迁移 | D51: 2 | E51: 2 | F51: 4 | G51: 20000 | H51: 80000
C52: 终端适配 | D52: 2 | E52: 2 | F52: 4 | G52: 20000 | H52: 80000
A53: 7 | B53: 顺义区卫生健康委协同办公系统 | C53: 日常办公 | D53: 1 | E53: 1 | F53: 1 | G53: 20000 | H53: 20000 | I53: =SUM(H53:H66) -> 280000
C54: 公文管理 | D54: 1 | E54: 1 | F54: 1 | G54: 20000 | H54: 20000
C55: 邮箱 | D55: 0.5 | E55: 1 | F55: 0.5 | G55: 20000 | H55: 10000
C56: 会议管理 | D56: 1 | E56: 1 | F56: 1 | G56: 20000 | H56: 20000
C57: 车辆管理 | D57: 1 | E57: 1 | F57: 1 | G57: 20000 | H57: 20000
C58: 督察督办 | D58: 1 | E58: 1 | F58: 1 | G58: 20000 | H58: 20000
C59: 档案管理 | D59: 1 | E59: 1 | F59: 1 | G59: 20000 | H59: 20000
C60: 财务审计 | D60: 1 | E60: 1 | F60: 1 | G60: 20000 | H60: 20000
C61: 考勤管理 | D61: 1 | E61: 1 | F61: 1 | G61: 20000 | H61: 20000
C62: 重点工作 | D62: 1 | E62: 1 | F62: 1 | G62: 20000 | H62: 20000
C63: 政务公开 | D63: 1 | E63: 1 | F63: 1 | G63: 20000 | H63: 20000
C64: 投票管理 | D64: 1 | E64: 1 | F64: 1 | G64: 20000 | H64: 20000
C65: 数据迁移 | D65: 1 | E65: 1 | F65: 1 | G65: 20000 | H65: 20000
C66: 终端适配 | D66: 1.5 | E66: 1 | F66: 1.5 | G66: 20000 | H66: 30000
A67: 8 | B67: 电子政务办公服务平台 | C67: 政务办公 | D67: 2 | E67: 2 | F67: =D67*E67 -> 4 | G67: 20000 | H67: =G67*F67 -> 80000 | I67: =SUM(H67:H74) -> 500000
C68: 政务通知 | D68: 1 | E68: 1 | F68: 1 | G68: 20000 | H68: 20000
C69: 来文办理 | D69: 2 | E69: 2 | F69: 4 | G69: 20000 | H69: 80000
C70: 便民电话 | D70: 1 | E70: 1 | F70: 1 | G70: 20000 | H70: 20000
C71: 政府督查 | D71: 1.5 | E71: 2 | F71: 3 | G71: =人月成本 -> 20000 | H71: 60000
C72: 信息报送 | D72: 2 | E72: 2 | F72: 4 | G72: 20000 | H72: 80000
C73: 数据迁移 | D73: 2 | E73: 2 | F73: 4 | G73: 20000 | H73: 80000
C74: 终端适配 | D74: 2 | E74: 2 | F74: 4 | G74: 20000 | H74: 80000
A75: 9 | B75: 统一认证管理系统 | C75: 统一用户管理 | D75: 1 | E75: 2 | F75: 2 | G75: 20000 | H75: 40000 | I75: =SUM(H75:H81) -> 380000
C76: 统一授权管理 | D76: 2 | E76: 2 | F76: 4 | G76: 20000 | H76: 80000
A77: 9 | B77: 统一认证管理系统 | C77: 统一认证 | D77: 2 | E77: 2 | F77: 4 | G77: 20000 | H77: 80000
C78: 单点登录 | D78: 1 | E78: 2 | F78: 2 | G78: 20000 | H78: 40000
C79: 应用对接 | D79: 2 | E79: 2 | F79: 4 | G79: 20000 | H79: 80000
C80: 数据迁移 | D80: 1.5 | E80: 1 | F80: 1.5 | G80: 20000 | H80: 30000
C81: 终端适配 | D81: 1.5 | E81: 1 | F81: 1.5 | G81: 20000 | H81: 30000
A82: 10 | B82: 顺义区交通局综合办公平台 | C82: 日常发布信息 | D82: 2 | E82: 2 | F82: 4 | G82: 20000 | H82: 80000 | I82: =SUM(H82:H86) -> 300000
C83: 通知 | D83: 1 | E83: 2 | F83: 2 | G83: 20000 | H83: 40000
C84: 工作人员间传输文件 | D84: 2 | E84: 2 | F84: 4 | G84: 20000 | H84: 80000
C85: 数据迁移 | D85: 2 | E85: 2 | F85: 4 | G85: 20000 | H85: 80000
C86: 终端适配 | D86: 1 | E86: 1 | F86: 1 | G86: 20000 | H86: 20000
A87: 11 | B87: 顺义区水务局OA办公平台 | C87: 公文收发 | D87: 2 | E87: 2 | F87: 4 | G87: 20000 | H87: 80000 | I87: =SUM(H87:H94) -> 280000
C88: 内部邮件 | D88: 1 | E88: 2 | F88: 2 | G88: 20000 | H88: 40000
C89: 收发通知 | D89: 1 | E89: 1 | F89: 1 | G89: 20000 | H89: 20000
C90: 流程审批 | D90: 1 | E90: 2 | F90: 2 | G90: 20000 | H90: 40000
C91: 用车 | D91: 1 | E91: 1 | F91: 1 | G91: 20000 | H91: 20000
C92: 物品领用 | D92: 1 | E92: 1 | F92: 1 | G92: 20000 | H92: 20000
C93: 数据迁移 | D93: 1.5 | E93: 1 | F93: 1.5 | G93: 20000 | H93: 30000
C94: 终端适配 | D94: 1.5 | E94: 1 | F94: 1.5 | G94: 20000 | H94: 30000
A95: 12 | B95: 北京市顺义区统计局办公自动化 | C95: 流程管理 | D95: 1 | E95: 2 | F95: 2 | G95: 20000 | H95: 40000 | I95: =SUM(H95:H99) -> 260000
C96: 人员收发邮件 | D96: 1 | E96: 2 | F96: 2 | G96: 20000 | H96: 40000
C97: 公文管理 | D97: 2 | E97: 2 | F97: 4 | G97: 20000 | H97: 80000
C98: 数据迁移 | D98: 1.75 | E98: 2 | F98: 3.5 | G98: 20000 | H98: 70000
C99: 终端适配 | D99: 1.5 | E99: 1 | F99: 1.5 | G99: 20000 | H99: 30000
A100: 13 | B100: 顺义区民政局办公平台 | C100: 基础办公 | D100: 1 | E100: 2 | F100: 2 | G100: 20000 | H100: 40000 | I100: =SUM(H100:H106) -> 260000
C101: 领导桌面 | D101: 1 | E101: 2 | F101: 2 | G101: 20000 | H101: 40000
C102: 个人办公 | D102: 1 | E102: 2 | F102: 2 | G102: 20000 | H102: 40000
C103: 公文管理 | D103: 1.5 | E103: 2 | F103: 3 | G103: =人月成本 -> 20000 | H103: 60000
C104: 后勤管理 | D104: 1 | E104: 1 | F104: 1 | G104: 20000 | H104: 20000
C105: 数据迁移 | D105: 1.5 | E105: 1 | F105: 1.5 | G105: 20000 | H105: 30000
C106: 终端适配 | D106: 1.5 | E106: 1 | F106: 1.5 | G106: 20000 | H106: 30000
A107: 14 | B107: 顺义区人力社保局办公平台 | C107: 公文管理 | D107: 2.5 | E107: 2 | F107: 5 | G107: 20000 | H107: 100000 | I107: =SUM(H107:H112) -> 320000
C108: 发通知 | D108: 1 | E108: 2 | F108: 2 | G108: 20000 | H108: 40000
C109: 查询 | D109: 1.25 | E109: 2 | F109: 2.5 | G109: 20000 | H109: 50000
C110: 定会议室 | D110: 1 | E110: 2 | F110: 2 | G110: 20000 | H110: 40000
C111: 终端适配 | D111: 1.5 | E111: 1 | F111: 1.5 | G111: 20000 | H111: 30000
C112: 数据迁移 | D112: 1.5 | E112: 2 | F112: 3 | G112: 20000 | H112: 60000
A113: 15 | B113: 区投资中心办公系统 | C113: 电子邮件 | D113: 1 | E113: 1 | F113: 1 | G113: 20000 | H113: 20000 | I113: =SUM(H113:H128) -> 320000
A114: 15 | B114: 区投资中心办公系统 | C114: 内部短信 | D114: 1 | E114: 1 | F114: 1 | G114: 20000 | H114: 20000
C115: 手机短信 | D115: 1 | E115: 1 | F115: 1 | G115: 20000 | H115: 20000
C116: 日程安排 | D116: 1 | E116: 1 | F116: 1 | G116: 20000 | H116: 20000
C117: 工作日志 | D117: 0.5 | E117: 1 | F117: 0.5 | G117: 20000 | H117: 10000
C118: 会议管理 | D118: 1 | E118: 1 | F118: 1 | G118: 20000 | H118: 20000
C119: 车辆管理 | D119: 1 | E119: 1 | F119: 1 | G119: 20000 | H119: 20000
C120: 办公用品 | D120: 0.5 | E120: 1 | F120: 0.5 | G120: 20000 | H120: 10000
C121: 信息发布 | D121: 1 | E121: 1 | F121: 1 | G121: 20000 | H121: 20000
C122: 文件管理 | D122: 1 | E122: 1 | F122: 1 | G122: 20000 | H122: 20000
C123: 人事档案 | D123: 1 | E123: 1 | F123: 1 | G123: 20000 | H123: 20000
C124: 考勤管理 | D124: 1 | E124: 1 | F124: 1 | G124: 20000 | H124: 20000
C125: 会议管理 | D125: 1 | E125: 1 | F125: 1 | G125: 20000 | H125: 20000
C126: 投票管理 | D126: 1 | E126: 1 | F126: 1 | G126: 20000 | H126: 20000
C127: 数据迁移 | D127: 1.5 | E127: 1 | F127: 1.5 | G127: 20000 | H127: 30000
C128: 终端适配 | D128: 1.5 | E128: 1 | F128: 1.5 | G128: 20000 | H128: 30000
A129: 16 | B129: 区委网信办互联网工作平台 | C129: 日常工作 | D129: 1 | E129: 2 | F129: 2 | G129: 20000 | H129: 40000 | I129: =SUM(H129:H135) -> 300000
C130: 文件管理 | D130: 1 | E130: 2 | F130: 2 | G130: 20000 | H130: 40000
C131: 数据管理 | D131: 1.5 | E131: 2 | F131: =D131*E131 -> 3 | G131: 20000 | H131: =G131*F131 -> 60000
C132: 个人工作 | D132: 1 | E132: 2 | F132: 2 | G132: 20000 | H132: 40000
C133: 统计查询 | D133: 1.5 | E133: 1 | F133: 1.5 | G133: 20000 | H133: 30000
C134: 数据迁移 | D134: 1.5 | E134: 2 | F134: 3 | G134: 20000 | H134: 60000
C135: 终端适配 | D135: 1.5 | E135: 1 | F135: 1.5 | G135: =人月成本 -> 20000 | H135: 30000
A136: 17 | B136: 中共北京市顺义区委党校信息系统 | C136: 协同办公 | D136: 2 | E136: 2 | F136: 4 | G136: 20000 | H136: 80000 | I136: =SUM(H136:H143) -> 380000
C137: 学员管理 | D137: 1 | E137: 2 | F137: 2 | G137: 20000 | H137: 40000
C138: 课程管理 | D138: 1 | E138: 2 | F138: 2 | G138: 20000 | H138: 40000
C139: 教学管理 | D139: 1 | E139: 2 | F139: 2 | G139: 20000 | H139: 40000
C140: 师资管理 | D140: 1 | E140: 2 | F140: 2 | G140: 20000 | H140: 40000
C141: 科研管理 | D141: 2 | E141: 2 | F141: 4 | G141: 20000 | H141: 80000
C142: 数据迁移 | D142: 1.5 | E142: 1 | F142: 1.5 | G142: 20000 | H142: 30000
C143: 终端适配 | D143: 1.5 | E143: 1 | F143: 1.5 | G143: 20000 | H143: 30000
B144: 合计 | I144: =SUM(I3:I143) -> 6394000

Sheet 询价表（打印） (hidden)
A1: 目录外产品服务询价表
A2: 产品名称 | B2: 询价结果 | C2: 厂商1 | D2: 厂商2 | E2: 厂商3
A3: 备份一体机 | B3: 600000 | C3: 华为技术有限公司 王金辉 18601020846 | D3: 新华三技术有限公司 仲秋 18610033183 | E3: 706 李鑫13552982576
A4: 磁盘阵列 | B4: 450000 | C4: 北京同有飞骥科技股份有限公司 胡杨 13911853869 | D4: 华为技术有限公司 王金辉 18601020846 | E4: 新华三技术有限公司
A5: 负载均衡 | B5: 300000 | C5: 新华三技术有限公司 仲秋 18610033183 | D5: 706 李鑫13552982576 | E5: 华为技术有限公司 王金辉 18601020846
A6: 光纤交换机 | B6: 112000 | C6: 北京同有飞骥科技股份有限公司 胡杨 13911853869 | D6: 华为技术有限公司 王金辉 18601020846 | E6: 新华三技术有限公司
A7: 读写分离 | B7: 80000 | C7: 新华三技术有限公司 仲秋 18610033183 | D7: 706 李鑫13552982576 | E7: 华为技术有限公司 王金辉 18601020846
A8: 48口交换机 | B8: 50000 | C8: 华为技术有限公司 王金辉 18601020846 | D8: 新华三技术有限公司 仲秋 18610033183 | E8: 北京同有飞骥科技股份有限公司 胡杨 13911853869
A9: 24口交换机 | B9: 200000 | C9: 华为技术有限公司 王金辉 18601020846 | D9: 新华三技术有限公司 仲秋 18610033183 | E9: 北京同有飞骥科技股份有限公司 胡杨 13911853869
A10: HBA卡 | B10: 8500 | C10: 参照目录内北京同方
A11: HA | B11: 36000 | C11: 参照目录内人大金仓
A12: 软件测评 | B12: 8500000 | C12: 北京信息安全测评中心 张丹萍13910595997
A13: 安全测评 | B13: 2070593 | C13: 北京信息安全测评中心 张丹萍13910595997
A14: 日志审计 | B14: 3000000 | C14: 华为技术有限公司 刘光伟 19801026010

Sheet 病毒防治系统说明（打印） (hidden)
A1: 实施方案-病毒防治系统说明
A2: 序号 | B2: 产品名称 | C2: 数量 | D2: 单位 | E2: 单价 | F2: 合价
A3: 1 | B3: 服务器端 | C3: 1 | D3: 套 | E3: 14000 | F3: =E3*C3 -> 14000
A4: 2 | B4: 终端授权 | C4: 4463 | D4: 套 | E4: 400 | F4: =E4*C4 -> 1785200
A5: 合计 | F5: =SUM(F3:F4) -> 1799200

Sheet 目录类型汇总表（打印） (hidden)
A1: 项目实施方案-目录类型分表
A2: 采购类型 | B2: 产品名 | C2: 采购数量 | D2: 单位 | E2: 单价 | F2: 总价 | G2: 汇总
A3: 目录内 | B3: 安全可靠终端（笔记本） | C3: 398 | D3: 台 | E3: 8500 | F3: 3383000 | G3: 3383000
B4: 安全可靠终端（台式） | C4: 3978 | D4: 台 | E4: 6500 | F4: 25857000 | G4: 25857000
B5: 版式软件 | C5: 4376 | D5: 套 | E5: 520 | F5: 2275520 | G5: 2275520
B6: 笔记本操作系统 | C6: 398 | D6: 套 | E6: 600 | F6: 238800 | G6: 238800
B7: 病毒防治系统 | C7: 1 | D7: 套 | E7: 1799200 | F7: 1799200 | G7: 1799200
B8: 彩色打印机 | C8: 192 | D8: 台 | E8: 9800 | F8: 1881600 | G8: 1881600
B9: 防火墙 | C9: 2 | D9: 台 | E9: 105400 | F9: 210800 | G9: 210800
B10: 服务器 | C10: 87 | D10: 台 | E10: 70000 | F10: 6090000 | G10: 6090000
B11: 服务器操作系统 | C11: 87 | D11: 套 | E11: 7500 | F11: 652500 | G11: 652500
B12: 红黑打印机 | C12: 1170 | D12: 台 | E12: 6200 | F12: 7254000 | G12: 7254000
B13: 流式软件 | C13: 4376 | D13: 套 | E13: 580 | F13: 2538080 | G13: 2538080
B14: 数据库 | C14: 44 | D14: 套 | E14: 120000 | F14: 5280000 | G14: 5280000
B15: 数据库审计 | C15: 1 | D15: 台 | E15: 150000 | F15: 150000 | G15: 150000
B16: 台式机操作系统 | C16: 3978 | D16: 套 | E16: 600 | F16: 2386800 | G16: 2386800
B17: 应用中间件 | C17: 43 | D17: 套 | E17: 50000 | F17: 2150000 | G17: 2150000
A18: 目录内 汇总 | G18: 62147300
A19: 目录外 | B19: HA | C19: 16 | D19: 套 | E19: 36000 | F19: 576000 | G19: 576000
B20: HBA卡 | C20: 43 | D20: 个 | E20: 8500 | F20: 365500 | G20: 365500
B21: 备份一体机 | C21: 1 | D21: 台 | E21: 600000 | F21: 600000 | G21: 600000
B22: 磁盘阵列 | C22: 2 | D22: 台 | E22: 450000 | F22: 900000 | G22: 900000
B23: 负载均衡 | C23: 2 | D23: 台 | E23: 300000 | F23: 600000 | G23: 600000
B24: 工程预备费 | C24: 1 | D24: 套 | E24: 1722577.455 | F24: 1722577.455 | G24: 1722577.455
B25: 光纤交换机 | C25: 2 | D25: 台 | E25: 112000 | F25: 224000 | G25: 224000
B26: 日志审计 | C26: 1 | D26: 台 | E26: 300000 | F26: 300000 | G26: 300000
B27: 数据库读写分离组件 | C27: 3 | D27: 套 | E27: 80000 | F27: 240000 | G27: 240000
B28: 系统集成费 | C28: 1 | D28: 套 | E28: 5915981.461 | F28: 5915981.461 | G28: 5915981.461
B29: 应用系统迁移改造 | C29: 1 | D29: 套 | E29: 6394000 | F29: 6394000 | G29: 6394000
B30: 运维管理软件 | C30: 1 | D30: 套 | E30: 1082968.262 | F30: 1082968.262 | G30: 1082968.262
B31: 工程监理费 | C31: 1 | D31: 套 | E31: 1626894.902 | F31: 1626894.902 | G31: 1626894.902
B32: 招标代理服务费 | C32: 1 | D32: 套 | E32: 236639.2584 | F32: 236639.2584 | G32: 236639.2584
B33: 安全测评费 | C33: 1 | D33: 套 | E33: 2070593.511 | F33: 2070593.511 | G33: 2070593.511
B34: 服务器接入交换机(48口） | C34: 10 | D34: 台 | E34: 50000 | F34: 500000 | G34: 500000
B35: 服务器接入交换机（24口） | C35: 1 | D35: 台 | E35: 20000 | F35: 20000 | G35: 20000
B36: 项目管理费 | C36: 1 | D36: 套 | E36: 1478995.365 | F36: 1478995.365 | G36: 1478995.365
B37: 系统测评费 | C37: 1 | D37: 套 | E37: 850000 | F37: 850000 | G37: 850000
A38: 目录外 汇总 | G38: 25704150.22
A39: 总计 | G39: 87851450.22

Sheet 2020-2021预算费用汇总表1（打印） (hidden)
A1: 2020年-2021年上报预算费用明细表
A2: 序号 | B2: 名称 | C2: 单位 | D2: 采购类型 | E2: 数量 | F2: 单价（元） | G2: 合计
A3: 一 | B3: 2020年费用计划
A4: 1 | B4: 目录内费用 | G4: 46733700
A5: 2 | B5: 目录外费用 | G5: 4325500
A6: 3 | B6: 应用系统迁移改造 | C6: 套 | D6: 服务 | E6: 1 | F6: 6394000 | G6: 6394000
A7: 4 | B7: 运维管理软件 | C7: 套 | D7: 服务 | E7: 1 | F7: 1082968.262 | G7: 1082968.262
A8: 3 | B8: 系统测评费 | C8: 套 | D8: 服务 | E8: 1 | F8: 850000 | G8: 850000
A9: 4 | B9: 安全测评费 | C9: 套 | D9: 服务 | E9: 1 | F9: 2070593.511 | G9: 2070593.511
A10: 5 | B10: 系统集成费(2020) | C10: 套 | D10: 服务 | E10: 1 | F10: 4226483.25 | G10: 4226483.25
A11: 6 | B11: 合计 | G11: =SUM(G4:G10) -> 65683245.02
A12: 二 | B12: 2021年费用计划
A13: 1 | B13: 目录内费用 | G13: 15413600
A14: 2 | B14: 系统集成费(2021) | C14: 套 | D14: 服务 | E14: 1 | F14: 1689498.211 | G14: 1689498.211
A15: 5 | B15: 合计 | G15: =SUM(G13:G14) -> 17103098.21
A16: 三 | B16: 项目其他费用
A17: 1 | B17: 工程预备费 | C17: 套 | D17: 服务 | E17: 1 | F17: 1722577.455 | G17: 1722577.455
A18: 2 | B18: 项目管理费 | C18: 套 | D18: 服务 | E18: 1 | F18: 1478995.365 | G18: 1478995.365
A19: 3 | B19: 工程监理费 | C19: 套 | D19: 服务 | E19: 1 | F19: 1626894.902 | G19: 1626894.902
A20: 4 | B20: 招标代理服务费 | C20: 套 | D20: 服务 | E20: 1 | F20: 236639.2584 | G20: 236639.2584
A21: 5 | B21: 合计 | G21: =SUM(G17:G20) -> 5065106.981
A22: 四 | B22: 总计 | G22: =SUM(G3:G21)/2 -> 87851450.22

Sheet 预算基础数据表 (hidden)
A1: 预算汇总表
N2: 支付比例 | T2: 支付费用
A3: 序号 | B3: 名称 | C3: 参数说明 | D3: 费用类型 | E3: 单位 | F3: 数量 | G3: 单价（元） | H3: 合价（元） | I3: 建设年度 | J3: 采购类型 | K3: 分组 | L3: 工作分类 | M3: 建设类型 | N3: 2020-08-01 | O3: 2020-11-01 | P3: 2021-03-01 | Q3: 2021-12-01 | R3: 2022-01-01 | S3: 合计 | T3: 2020-08-01 | U3: 2020-11-01 | V3: 2021-03-01 | W3: 2021-12-01 | X3: 2022-01-01 | Y3: 合计 | Z3: 参考型号 | AA3: 经销商电话 | AB3: 所在分册 | AC3: 页码
A4: 1 | B4: 服务器接入交换机(48口） | C4: 1、使用国产自主安全CPU和交换芯片，千兆电接口≥48个，10G的SFP+光接口≥6个，100G光接口≥2个，配置模块化冗余电源； 2、交换容量≥600Gbps；包转发率≥370Mpps； 3、支持静态路由、RIP、OSPF、BGP等动态路由协议； 4、支持MPLS L3 VPN，支持虚拟化功能； 5、支持配置文件加密，保护设备配置信息泄漏，支持Telnet、Console、SNMP等管理方式。 | D4: 一次性 | E4: 台 | F4: 10 | G4: 50000 | H4: =G4*F4 -> 500000 | I4: 2020 | J4: 目录外 | K4: 网络设备 | L4: 硬件 | M4: 购置 | N4: 0.6 | O4: 0.3 | P4: 0 | Q4: 0 | R4: 0.1 | S4: =SUM(N4:R4) -> 1 | T4: =H4*N4 -> 300000 | U4: =H4*O4 -> 150000 | V4: =H4*P4 -> 0 | W4: =H4*Q4 -> 0 | X4: =H4*R4 -> 50000 | Y4: =SUM(T4:X4) -> 500000
A5: 2 | B5: 服务器接入交换机（24口） | C5: 1、使用国产自主安全CPU和交换芯片，交换容量≥160Gbps；包转发率≥100Mpps； 2、千兆电接口≥24个，SFP千兆光接口≥4个，SFP+万兆光接口≥4个，配置1+1冗余模块化电源； 3、支持静态路由、RIP路由协议； 4、支持Telnet、Console、SNMP等管理方式，支持配置文件国密算法加密，防护设备配置环境信息泄漏。 | D5: 一次性 | E5: 台 | F5: 1 | G5: 20000 | H5: 20000 | I5: 2020 | J5: 目录外 | K5: 网络设备 | L5: 硬件 | M5: 购置 | N5: 0.6 | O5: 0.3 | P5: 0 | Q5: 0 | R5: 0.1 | S5: 1 | T5: 12000 | U5: 6000 | V5: 0 | W5: 0 | X5: 2000 | Y5: 20000
A6: 3 | B6: 服务器 | C6: CPU：主频≥1.45GHz，核数≥4 内存：容量≥32GB 硬盘：容量≥2TB， 盘位数不少于8盘位； 支持RAID 0/1/5 服务：提供3年整机质保，7*24小时电话响应支持。 | D6: 一次性 | E6: 台 | F6: 87 | G6: 70000 | H6: 6090000 | I6: 2020 | J6: 目录内 | K6: 服务器设备 | L6: 硬件 | M6: 购置 | N6: 0.6 | O6: 0.3 | P6: 0 | Q6: 0 | R6: 0.1 | S6: 1 | T6: 3654000 | U6: 1827000 | V6: 0 | W6: 0 | X6: 609000 | Y6: 6090000 | Z6: 超强K620-M1 （2×48核） | AB6: 涉密专用计算机 | AC6: 18
A7: 4 | B7: HBA卡 | C7: 用于连接服务器&光纤交换机；接口类型：16Gbps； | D7: 一次性 | E7: 个 | F7: 43 | G7: 8500 | H7: 365500 | I7: 2020 | J7: 目录外 | K7: 服务器设备 | L7: 硬件 | M7: 购置 | N7: 0.6 | O7: 0.3 | P7: 0 | Q7: 0 | R7: 0.1 | S7: 1 | T7: 219300 | U7: 109650 | V7: 0 | W7: 0 | X7: 36550 | Y7: 365500
A8: 5 | B8: 负载均衡 | C8: 标配8个固定千兆电口（RJ45）, 4个万兆位SFP+光纤端口，可支持4口千兆电口或光口扩展支持IPv4/v6、NAT、MPLS、OSPF、RIP、动态/静态路由等技术4层吞吐量大于等于10G并发会话数大于1200万，四层每秒新建会话数大于35万，新建会话数大于18万。对连接时间较长的应用业务，可主动拆除连接，按照预定策略重新负载新建连接采用国产交换芯片的专用硬件平台，软件平台拥有国产内核使用授权，内存为32GB DDR3 ECC，256GB固态硬盘，交流供电，支持1+1冗余； | D8: 一次性 | E8: 台 | F8: 2 | G8: 300000 | H8: 600000 | I8: 2020 | J8: 目录外 | K8: 服务器设备 | L8: 硬件 | M8: 购置 | N8: 0.6 | O8: 0.3 | P8: 0 | Q8: 0 | R8: 0.1 | S8: 1 | T8: 360000 | U8: 180000 | V8: 0 | W8: 0 | X8: 60000 | Y8: 600000
A9: 6 | B9: 光纤交换机 | C9: 48口16Gbps FC交换机；48端口激活；满配16Gbps多模光模块，双热插拔冗余电源；带风扇； | D9: 一次性 | E9: 台 | F9: 2 | G9: 112000 | H9: 224000 | I9: 2020 | J9: 目录外 | K9: 存储设备 | L9: 硬件 | M9: 购置 | N9: 0.6 | O9: 0.3 | P9: 0 | Q9: 0 | R9: 0.1 | S9: 1 | T9: 134400 | U9: 67200 | V9: 0 | W9: 0 | X9: 22400 | Y9: 224000
A10: 7 | B10: 备份一体机 | C10: 机架式国产处理器（核心数≥8核，主频≥1.5GHz），不小于64G DDR3 RAM，50TB存储空间，4*1GE电口，含备份管理软件，支持无限备份客户端数量，支持数据库备份和回复，实现操作系统下的整机备份和裸机恢复，支持文件备份和恢复。支持对主流及国产化数据库周期备份、增量备份、重删等功能，3年质保服务； | D10: 一次性 | E10: 台 | F10: 1 | G10: 600000 | H10: 600000 | I10: 2020 | J10: 目录外 | K10: 存储设备 | L10: 硬件 | M10: 购置 | N10: 0.6 | O10: 0.3 | P10: 0 | Q10: 0 | R10: 0.1 | S10: 1 | T10: 360000 | U10: 180000 | V10: 0 | W10: 0 | X10: 60000 | Y10: 600000
A11: 8 | B11: 磁盘阵列 | C11: 双控制器（国产CPU），国产操作系统，配置高速缓存≥256GB，配置8个1Gb iSCSI接口、8个16Gbps FC接口，配置存储容量约50T SAS硬盘； | D11: 一次性 | E11: 台 | F11: 2 | G11: 450000 | H11: 900000 | I11: 2020 | J11: 目录外 | K11: 存储设备 | L11: 硬件 | M11: 购置 | N11: 0.6 | O11: 0.3 | P11: 0 | Q11: 0 | R11: 0.1 | S11: 1 | T11: 540000 | U11: 270000 | V11: 0 | W11: 0 | X11: 90000 | Y11: 900000
A12: 9 | B12: 防火墙 | C12: 标准2U机箱，冗余电源；产品支持透明传输、路由转发模式部署，支持路由设置、高可用性等组网与部署能力；提供包过滤、地址转换、状态检测、动态开放端口、带宽管理、连接数控制等网络层访问控制功能；提供应用类型控制、应用关键内容控制等应用层控制功能；提供拒绝服务攻击防护、恶意代码防护、应用攻击防护等功能； | D12: 一次性 | E12: 台 | F12: 2 | G12: 105400 | H12: 210800 | I12: 2020 | J12: 目录内 | K12: 安全设备 | L12: 硬件 | M12: 购置 | N12: 0.6 | O12: 0.3 | P12: 0 | Q12: 0 | R12: 0.1 | S12: 1 | T12: 126480 | U12: 63240 | V12: 0 | W12: 0 | X12: 21080 | Y12: 210800 | AB12: 安可替代工程适配产品清单-网络安全产品-1-2020 | AC12: 15
A13: 10 | B13: 病毒防治系统 | C13: 含1套管理平台；不少于4376个终端授权；用于服务器端和终端的恶意代码防范、病毒入侵防范； | D13: 一次性 | E13: 套 | F13: 1 | G13: =1.4*10000+400*4463 -> 1799200 | H13: 1799200 | I13: 2020 | J13: 目录内 | K13: 安全设备 | L13: 硬件 | M13: 购置 | N13: 0.6 | O13: 0.3 | P13: 0 | Q13: 0 | R13: 0.1 | S13: 1 | T13: 1079520 | U13: 539760 | V13: 0 | W13: 0 | X13: 179920 | Y13: 1799200
A14: 11 | B14: 日志审计 | C14: 2U标准机架式，冗余电源，专用千兆硬件平台和安全操作系统，6个千兆电口，1个管理口，标配采用Raid5，有效存储容量4TB。提供采集各种不同厂商的安全设备、网络设备、主机、操作系统、以及各种应用系统产生的日志信息，汇集到审计中心，通过解析过滤归并后统一呈现，支持自定义条件查询和策略查询，支持深度关联分析自定义关联规则进行审计分析，支持告警和自定义报表等功能。默认支持100个审计对象授权，综合处理性能达6300EPS； | D14: 一次性 | E14: 台 | F14: 1 | G14: 300000 | H14: 300000 | I14: 2020 | J14: 目录外 | K14: 安全设备 | L14: 硬件 | M14: 购置 | N14: 0.6 | O14: 0.3 | P14: 0 | Q14: 0 | R14: 0.1 | S14: 1 | T14: 180000 | U14: 90000 | V14: 0 | W14: 0 | X14: 30000 | Y14: 300000
A15: 12 | B15: 数据库审计 | C15: 能够对网络环境中的数据库管理系统的数据操作、结构操作和用户更改等行为进行审计和分析。提供了按条件查询审计记录、统计分析、潜在危害分析、事件分级和告警响应等功能；国产CPU，国产操作系统，内存8GB，硬盘1TB，网络接口：1个管理口、5个千兆电口、4个千兆光口、2个万兆光口；标准机架式机箱； | D15: 一次性 | E15: 台 | F15: 1 | G15: 150000 | H15: 150000 | I15: 2020 | J15: 目录内 | K15: 安全设备 | L15: 硬件 | M15: 购置 | N15: 0.6 | O15: 0.3 | P15: 0 | Q15: 0 | R15: 0.1 | S15: 1 | T15: 90000 | U15: 45000 | V15: 0 | W15: 0 | X15: 15000 | Y15: 150000 | AB15: 安可替代工程适配产品清单-网络安全产品-1-2020 | AC15: 61
A16: 13 | B16: 安全可靠终端（台式） | C16: 国产化CPU； 支持国产化操作系统； CPU：主频≥1.8GHz，核数≥4 内存：容量≥8GB 硬盘：容量≥256GB，SSD 独立显卡 显示器：≥23.8英寸 服务：3年整机质保，提供1年上门服务，7*24小时电话响应支持。 | D16: 一次性 | E16: 台 | F16: ='预算汇总表（打印）'!F20 ->  | G16: 6500 | I16: 2020 | J16: 目录内 | K16: 终端及外设 | L16: 硬件 | M16: 购置 | N16: 0.3 | O16: 0.15 | P16: 0.3 | Q16: 0.15 | R16: 0.1 | S16: 1 | AB16: 安可替代工程适配产品清单-计算机终端类 | AC16: 1
A17: 14 | B17: 安全可靠终端（笔记本） | C17: 国产CPU； 支持国产操作系统； CPU：1.2GHZ； 内存：≥4GB； 硬盘：≥128GB,SSD； 独显，显示器：≥14英寸 服务：3年整机质保，提供1年上门服务，7*24小时电话响应支持。 | D17: 一次性 | E17: 台 | F17: ='预算汇总表（打印）'!F21 ->  | G17: 8500 | J17: 目录内 | K17: 终端及外设 | L17: 硬件 | M17: 购置 | N17: 0.3 | O17: 0.15 | P17: 0.3 | Q17: 0.15 | R17: 0.1 | S17: 1 | AB17: 安可替代工程适配产品清单-计算机终端类 | AC17: 7
A18: 15 | B18: 彩色打印机 | C18: A4彩色多功能打印扫描一体机，具备文字文档打印、图片打印、份数设置、范围设置、页边距设置、缩放打印设置、打印队列管理等基本功能，支持彩色扫描/复印,双面打印。 平均一分钟打印不小于24页；符合GB/T17540-2017《台式激光打印机通用规范》、GB／T28166-2011《馈纸式扫描仪通用规范》和基础通用产品打印机、扫描仪测试规范的要求。 处理器数量≥1，处理器主频≥800MHz,内存≥512MB； 提供3年原厂技术设备免费保修及维护服务，7*24小时电话响应支持。根据CPU芯片和操作系统升级以及安可替代工程产品目录更新，提供3年内免费适配服务。 | E18: 台 | F18: ='预算汇总表（打印）'!F22 ->  | G18: 9800 | J18: 目录内 | K18: 终端及外设 | L18: 硬件 | M18: 购置 | N18: 0.3 | O18: 0.15 | P18: 0.3 | Q18: 0.15 | R18: 0.1 | S18: 1 | Z18: 奔图彩色激光单功能打印机 （CP2510DN） | AB18: 安可替代工程适配产品清单-基础通用产品 | AC18: 4
A19: 16 | B19: 红黑打印机 | C19: A4红黑单功能打印机，具备文字文档打印、图片打印、份数设置、范围设置、页边距设置、缩放打印设置、打印队列管理等基本功能，支持网络打印、红黑打印。 平均一分钟打印不小于28页；符合GB/T17540-2017《台式激光打印机通用规范》和基础通用产品打印机测试规范的要求。 处理器数量≥1，处理器主频≥266MHz,内存≥128MB 提供3年免费升级服务，7*24小时电话响应支持。根据CPU芯片和操作系统升级以及安可替代工程产品目录更新，提供3年内免费适配服务。 | D19: 一次性 | E19: 台 | F19: ='预算汇总表（打印）'!F23 ->  | G19: 6200 | J19: 目录内 | K19: 终端及外设 | L19: 硬件 | M19: 购置 | N19: 0.3 | O19: 0.15 | P19: 0.3 | Q19: 0.15 | R19: 0.1 | S19: 1 | Z19: 奔图红黑双色打印机 （CP2515DN） | AB19: 安可替代工程适配产品清单-基础通用产品 | AC19: 4
A20: 17 | B20: 笔记本操作系统 | C20: 终端操作系统；兼容国产化CPU；具备设备管理、文件系统管理、用户管理、个性化设置等基本功能。 | D20: 一次性 | E20: 套 | F20: 398 | G20: 600 | H20: 238800 | J20: 目录内 | K20: 系统软件 | L20: 软件 | M20: 购置 | N20: 0.3 | O20: 0.15 | P20: 0.3 | Q20: 0.15 | R20: 0.1 | S20: 1 | T20: 71640 | U20: 35820 | V20: 71640 | W20: 35820 | X20: 23880 | Y20: 238800 | Z20: 统信UOSV2.0 | AB20: 安可替代工程适配产品清单-桌面操作系统 | AC20: 1
A21: 18 | B21: 台式机操作系统 | C21: 终端操作系统；兼容国产化CPU；具备设备管理、文件系统管理、用户管理、个性化设置等基本功能。 | D21: 一次性 | E21: 套 | F21: 3978 | G21: 600 | H21: 2386800 | J21: 目录内 | K21: 系统软件 | L21: 软件 | M21: 购置 | N21: 0.3 | O21: 0.15 | P21: 0.3 | Q21: 0.15 | R21: 0.1 | S21: 1 | T21: 716040 | U21: 358020 | V21: 716040 | W21: 358020 | X21: 238680 | Y21: 2386800 | Z21: 统信UOSV2.0 | AB21: 安可替代工程适配产品清单-桌面操作系统
A22: 19 | B22: 服务器操作系统 | C22: 服务器操作系统；兼容国产化CPU；具备文件管理、设备管理、日志管理、服务管理、进程和监控管理、网络管理、资源管理、软件包管理、硬盘管理等基本功能；提供语言支持工具、文件共享工具、集成开发平台等共享服务工具； | D22: 一次性 | E22: 套 | F22: 87 | G22: 7500 | H22: 652500 | I22: 2020 | J22: 目录内 | K22: 系统软件 | L22: 软件 | M22: 购置 | N22: 0.6 | O22: 0.3 | P22: 0 | Q22: 0 | R22: 0.1 | S22: 1 | T22: 391500 | U22: 195750 | V22: 0 | W22: 0 | X22: 65250 | Y22: 652500 | Z22: 统信UOSV2.0 | AB22: 安可替代工程适配产品清单-服务器操作系统 | AC22: 1
A23: 20 | B23: 数据库 | C23: 具备数据存储、访问控制、身份鉴别、安全审计和数据备份恢复等功能。产品部署在服务器，以后以服务形式运行，数据库管理员及用户在管理主机上通过图形化管理工具或命令行工具，可实现对数据对象（表、视图、约束、索引、触发器、存储过程等）的配置管理；开发人员可通过标准化数据库访问接口，开发基于数据库的应用系统和软件产品。 提供1年免费升级服务，7*24小时电话响应支持。根据CPU芯片和操作系统审计以及安可替代工程产品目录更新，提供3年内免费适配服务。 | D23: 一次性 | E23: 套 | F23: 44 | G23: 120000 | H23: 5280000 | I23: 2020 | J23: 目录内 | K23: 系统软件 | L23: 软件 | M23: 购置 | N23: 0.6 | O23: 0.3 | P23: 0 | Q23: 0 | R23: 0.1 | S23: 1 | T23: 3168000 | U23: 1584000 | V23: 0 | W23: 0 | X23: 528000 | Y23: 5280000 | Z23: 金仓数据库管理系统 （KingbaseESV8.0） | AB23: 安可替代工程适配产品清单-集群版数据库 | AC23: 2
A24: 21 | B24: 应用中间件 | C24: 具备Web应用、EJB应用、虚拟主机、应用服务器集群、身份验证、日志审计等基本工作，提供类库管理、集成环境管理、图形化监控、JVM配置、垃圾回收配置等工具，支持实例部署、数据库连接服务，为业务系统提供运行环境。 提供1年免费升级服务，7*24小时电话响应支持。根据CPU芯片和操作系统审计以及安可替代工程产品目录更新，提供3年内免费适配服务。 | D24: 一次性 | E24: 套 | F24: 43 | G24: 50000 | H24: 2150000 | I24: 2020 | J24: 目录内 | K24: 系统软件 | L24: 软件 | M24: 购置 | N24: 0.6 | O24: 0.3 | P24: 0 | Q24: 0 | R24: 0.1 | S24: 1 | T24: 1290000 | U24: 645000 | V24: 0 | W24: 0 | X24: 215000 | Y24: 2150000 | AB24: 安可替代工程适配产品清单-集群版数据库基础通用产品-1-2020 中间件类 | AC24: 1
A25: 22 | B25: HA | C25: 秒级容错技术能够有效地使被保护服务资源在极端的时间内完成切换任务，满足应用的持续性服务要求；任何一个节点出现故障，都可以在极短的时间内进行自动切换，当故障排除后，服务自动回迁，提供7*24小时永不停机的企业级应用可靠保障；支持双机热备，双机互备，多机备份等多种运行保护方式，用以满足各种应用保护需求； | D25: 一次性 | E25: 套 | F25: 16 | G25: 36000 | H25: 576000 | I25: 2020 | J25: 目录外 | K25: 系统软件 | L25: 软件 | M25: 购置 | N25: 0.6 | O25: 0.3 | P25: 0 | Q25: 0 | R25: 0.1 | S25: 1 | T25: 345600 | U25: 172800 | V25: 0 | W25: 0 | X25: 57600 | Y25: 576000
A26: 23 | B26: 数据库读写分离组件 | C26: 支持对国产化数据库进行读写分离管理；支持国产化操作系统部署； | D26: 一次性 | E26: 套 | F26: 3 | G26: 80000 | H26: 240000 | I26: 2020 | J26: 目录外 | K26: 系统软件 | L26: 软件 | M26: 购置 | N26: 0.6 | O26: 0.3 | P26: 0 | Q26: 0 | R26: 0.1 | S26: 1 | T26: 144000 | U26: 72000 | V26: 0 | W26: 0 | X26: 24000 | Y26: 240000
A27: 24 | B27: 运维管理软件 | C27: 支持国产化操作系统部署环境；实现安全可靠的网络、服务器、中间件、业务系统等统一管理运维； | D27: 一次性 | E27: 套 | F27: 1 | G27: =#REF! ->  | I27: 2020 | J27: 目录外 | K27: 系统软件 | L27: 软件 | M27: 开发 | N27: 0.4 | O27: 0.4 | P27: 0 | Q27: 0 | R27: 0.2 | S27: 1
A28: 25 | B28: 流式软件 | C28: 具备主界面、文件管理、页面设置、视图管理、编辑管理、插入管理、格式管理、工具、表格管理、对象管理、审阅管理、引用管理、插件管理、打印管理等基本功能，提供文字处理、电子表格、文档演示三大应用，支持PDF阅读和流版转换，支持国内外文档标准规范，兼容国内外主流流式软件。提供1年免费升级服务，7*24小时电话响应支持。根据CPU芯片和操作系统升级以及安可替代工程产品目录更新，提供3年内免费适配服务。 | D28: 一次性 | E28: 套 | F28: 4376 | G28: 580 | H28: 2538080 | J28: 目录内 | K28: 系统软件 | L28: 软件 | M28: 购置 | N28: 0.6 | O28: 0.3 | P28: 0 | Q28: 0 | R28: 0.1 | S28: 1 | T28: 1522848 | U28: 761424 | V28: 0 | W28: 0 | X28: 253808 | Y28: 2538080 | AB28: 安可替代工程适配产品清单-基础通用产品-1-2020 办公软件类 | AC28: 2
A29: 26 | B29: 版式软件 | C29: 具备主页管理、文件管理、页面管理、注释管理、试图管理、编辑管理、语义管理、签章管理、插件管理、打印管理等基本功能，支持水印、流版转换，兼容国内外主流版式软件。并可作为浏览器组件集成到业务应用系统中，实现文件签批、模板套打等公务扩展功能。 提供1年免费升级服务，7*24小时电话响应支持。根据CPU芯片和操作系统升级以及安可替代工程产品目录更新，提供3年内免费适配服务。 | D29: 一次性 | E29: 套 | F29: 4376 | G29: 520 | H29: 2275520 | J29: 目录内 | K29: 系统软件 | L29: 软件 | M29: 购置 | N29: 0.6 | O29: 0.3 | P29: 0 | Q29: 0 | R29: 0.1 | S29: 1 | T29: 1365312 | U29: 682656 | V29: 0 | W29: 0 | X29: 227552 | Y29: 2275520 | AB29: 安可替代工程适配产品清单-基础通用产品-1-2020 办公软件类 | AC29: 3
A30: 27 | B30: 应用系统迁移改造 | D30: 一次性 | E30: 套 | F30: 1 | G30: ='实施方案-系统迁移费'!I144 -> 6394000 | H30: 6394000 | I30: 2020 | J30: 目录外 | K30: 应用软件 | L30: 软件 | M30: 购置 | N30: 0.4 | O30: 0.4 | P30: 0 | Q30: 0 | R30: 0.2 | S30: 1 | T30: 2557600 | U30: 2557600 | V30: 0 | W30: 0 | X30: 1278800 | Y30: 6394000
A31: 28 | B31: 系统集成费 | D31: 一次性 | E31: 套 | F31: 1 | G31: =SUM(H4:H30)*0.08 ->  | H31: =F31*G31 ->  | I31: 2020 | J31: 目录外 | K31: 系统集成费 | L31: 服务 | M31: 购置 | N31: 0.4 | O31: 0.4 | P31: 0 | Q31: 0 | R31: 0.2 | S31: 1
A32: 29 | B32: 项目管理费 | D32: 一次性 | E32: 套 | F32: 1 | G32: =SUM(H4:H30)*0.02 ->  | I32: 2020 | J32: 目录外 | K32: 工程建设其他费用 | L32: 服务 | M32: 购置 | N32: 0.4 | O32: 0.4 | P32: 0 | Q32: 0 | R32: 0.2 | S32: 1
A33: 30 | B33: 工程监理费 | D33: 一次性 | E33: 套 | F33: 1 | G33: =SUM(H4:H30)*0.022 ->  | I33: 2020 | J33: 目录外 | K33: 工程建设其他费用 | L33: 服务 | M33: 购置 | N33: 0.4 | O33: 0.4 | P33: 0 | Q33: 0 | R33: 0.2 | S33: 1
A34: 31 | B34: 招标代理服务费 | D34: 一次性 | E34: 套 | F34: 1 | G34: =SUM(H4:H30)*0.0032 ->  | I34: 2020 | J34: 目录外 | K34: 工程建设其他费用 | L34: 服务 | M34: 购置 | N34: 1 | O34: 0 | P34: 0 | Q34: 0 | R34: 0 | S34: 1
A35: 32 | B35: 系统测评费 | D35: 一次性 | E35: 套 | F35: 1 | G35: ='预算汇总表（打印）'!G44 -> 850000 | H35: 850000 | I35: 2020 | J35: 目录外 | K35: 工程建设其他费用 | L35: 服务 | M35: 购置 | N35: 0.6 | O35: 0.3 | P35: 0 | Q35: 0 | R35: 0.1 | S35: 1 | T35: 510000 | U35: 255000 | V35: 0 | W35: 0 | X35: 85000 | Y35: 850000
A36: 33 | B36: 安全测评费 | D36: 一次性 | E36: 套 | F36: 1 | G36: =SUM(H4:H30)*0.028 ->  | I36: 2020 | J36: 目录外 | K36: 工程建设其他费用 | L36: 服务 | M36: 购置 | N36: 0.6 | O36: 0.3 | P36: 0 | Q36: 0 | R36: 0.1 | S36: 1
A37: 34 | B37: 工程预备费 | D37: 一次性 | E37: 套 | F37: 1 | G37: =SUM(H4:H36)*0.02 ->  | I37: 2020 | J37: 目录外 | K37: 工程预备费 | L37: 服务 | M37: 购置 | N37: 1 | O37: 0 | P37: 0 | Q37: 0 | R37: 0 | S37: 1
A38: 合计 | H38: =SUM(H4:H37) ->  | N38: =SUM(N4:N37)/ROWS(N4:N37) -> 0.5411764706 | O38: 0.2705882353 | P38: 0.05294117647 | Q38: 0.02647058824 | R38: 0.1088235294 | S38: 1 | T38: =SUM(T4:T37) -> 
T39: =T38+U38 ->  | V39: =V38+W38 -> 

Sheet 费用类型汇总表 (hidden)
A3: 总计 | F3: 总计
A4: 行标签 | B4: 数量 | C4: 单位 | D4: 单价（元） | E4: 汇总 | F4: 420000
A5: 网络设备 | E5: 520000 | F5: 20000
A6: 服务器接入交换机(48口） | B6: 10 | C6: 台 | D6: 50000 | E6: 500000 | F6: 400000
A7: 服务器接入交换机（24口） | B7: 1 | C7: 台 | D7: 20000 | E7: 20000 | F7: 5946000
A8: 服务器设备 | E8: 7055500 | F8: 306000
A9: HBA卡 | B9: 43 | C9: 个 | D9: 8500 | E9: 365500 | F9: 5040000
A10: 服务器 | B10: 87 | C10: 台 | D10: 70000 | E10: 6090000 | F10: 600000
A11: 负载均衡 | B11: 2 | C11: 台 | D11: 300000 | E11: 600000 | F11: 1724000
A12: 存储设备 | E12: 1724000 | F12: 600000
A13: 备份一体机 | B13: 1 | C13: 台 | D13: 600000 | E13: 600000 | F13: 900000
A14: 磁盘阵列 | B14: 2 | C14: 台 | D14: 450000 | E14: 900000 | F14: 224000
A15: 光纤交换机 | B15: 2 | C15: 台 | D15: 112000 | E15: 224000 | F15: 2348600
A16: 安全设备 | E16: 2460000 | F16: 1793200
A17: 病毒防治系统 | B17: 1 | C17: 套 | D17: 1799200 | E17: 1799200 | F17: 105400
A18: 防火墙 | B18: 2 | C18: 台 | D18: 105400 | E18: 210800 | F18: 300000
A19: 日志审计 | B19: 1 | C19: 台 | D19: 300000 | E19: 300000 | F19: 150000
A20: 数据库审计 | B20: 1 | C20: 台 | D20: 150000 | E20: 150000 | F20: 5762638.358
A21: 工程建设其他费用 | E21: 6263123.037 | F21: 1936528.334
A22: 安全测评费 | B22: 1 | C22: 套 | D22: 2070593.511 | E22: 2070593.511 | F22: 1521557.976
A23: 工程监理费 | B23: 1 | C23: 套 | D23: 1626894.902 | E23: 1626894.902 | F23: 1383234.524
A24: 招标代理服务费 | B24: 1 | C24: 套 | D24: 236639.2584 | E24: 236639.2584 | F24: 700000
A25: 项目管理费 | B25: 1 | C25: 套 | D25: 1478995.365 | E25: 1478995.365 | F25: 221317.5238
A26: 系统测评费 | B26: 1 | C26: 套 | D26: 850000 | E26: 850000 | F26: 1609146.053
A27: 工程预备费 | E27: 1722577.455 | F27: 1609146.053
A28: 工程预备费 | B28: 1 | C28: 套 | D28: 1722577.455 | E28: 1722577.455 | F28: 5532938.096
A29: 系统集成费 | E29: 5915981.461 | F29: 5532938.096
A30: 系统集成费 | B30: 1 | C30: 套 | D30: 5915981.461 | E30: 5915981.461 | F30: 15503426.2
A31: 系统软件 | E31: 17420668.26 | F31: 432000
A32: HA | B32: 16 | C32: 套 | D32: 36000 | E32: 576000 | F32: 2275520
A33: 版式软件 | B33: 4376 | C33: 套 | D33: 520 | E33: 2275520 | F33: 238800
A34: 笔记本操作系统 | B34: 398 | C34: 套 | D34: 600 | E34: 238800 | F34: 540000
A35: 服务器操作系统 | B35: 87 | C35: 套 | D35: 7500 | E35: 652500 | F35: 2538080
A36: 流式软件 | B36: 4376 | C36: 套 | D36: 580 | E36: 2538080 | F36: 4320000
A37: 数据库 | B37: 44 | C37: 套 | D37: 120000 | E37: 5280000 | F37: 160000
A38: 数据库读写分离组件 | B38: 3 | C38: 套 | D38: 80000 | E38: 240000 | F38: 2386800
A39: 台式机操作系统 | B39: 3978 | C39: 套 | D39: 600 | E39: 2386800 | F39: 1800000
A40: 应用中间件 | B40: 43 | C40: 套 | D40: 50000 | E40: 2150000 | F40: 812226.1968
A41: 运维管理软件 | B41: 1 | C41: 套 | D41: 1082968.262 | E41: 1082968.262 | F41: 4844100
A42: 应用软件 | E42: 6394000 | F42: 4844100
A43: 应用系统迁移改造 | B43: 1 | C43: 套 | D43: 6394000 | E43: 6394000 | F43: 38375600
A44: 终端及外设 | E44: 38375600 | F44: 3383000
A45: 安全可靠终端（笔记本） | B45: 398 | C45: 台 | D45: 8500 | E45: 3383000 | F45: 25857000
A46: 安全可靠终端（台式） | B46: 3978 | C46: 台 | D46: 6500 | E46: 25857000 | F46: 1881600
A47: 彩色打印机 | B47: 192 | C47: 台 | D47: 9800 | E47: 1881600 | F47: 7254000
A48: 红黑打印机 | B48: 1170 | C48: 台 | D48: 6200 | E48: 7254000 | F48: 82066448.7
A49: 总计 | E49: 87851450.22

Sheet 目录类型汇总表 (hidden)
A1: 项目实施方案-目录类型分表
A2: 采购类型 | B2: 产品名 | C2: 采购数量 | D2: 单位 | E2: 单价 | F2: 总价 | G2: 汇总
A3: 总计
A4: 行标签 | B4: 名称 | C4: 数量 | D4: 单位 | E4: 单价（元） | F4: 合价（元） | G4: 汇总
A5: 目录内 | B5: 安全可靠终端（笔记本） | C5: 398 | D5: 台 | E5: 8500 | F5: 3383000 | G5: 3383000
B6: 安全可靠终端（台式） | C6: 3978 | D6: 台 | E6: 6500 | F6: 25857000 | G6: 25857000
B7: 版式软件 | C7: 4376 | D7: 套 | E7: 520 | F7: 2275520 | G7: 2275520
B8: 笔记本操作系统 | C8: 398 | D8: 套 | E8: 600 | F8: 238800 | G8: 238800
B9: 病毒防治系统 | C9: 1 | D9: 套 | E9: 1799200 | F9: 1799200 | G9: 1799200
B10: 彩色打印机 | C10: 192 | D10: 台 | E10: 9800 | F10: 1881600 | G10: 1881600
B11: 防火墙 | C11: 2 | D11: 台 | E11: 105400 | F11: 210800 | G11: 210800
B12: 服务器 | C12: 87 | D12: 台 | E12: 70000 | F12: 6090000 | G12: 6090000
B13: 服务器操作系统 | C13: 87 | D13: 套 | E13: 7500 | F13: 652500 | G13: 652500
B14: 红黑打印机 | C14: 1170 | D14: 台 | E14: 6200 | F14: 7254000 | G14: 7254000
B15: 流式软件 | C15: 4376 | D15: 套 | E15: 580 | F15: 2538080 | G15: 2538080
B16: 数据库 | C16: 44 | D16: 套 | E16: 120000 | F16: 5280000 | G16: 5280000
B17: 数据库审计 | C17: 1 | D17: 台 | E17: 150000 | F17: 150000 | G17: 150000
B18: 台式机操作系统 | C18: 3978 | D18: 套 | E18: 600 | F18: 2386800 | G18: 2386800
B19: 应用中间件 | C19: 43 | D19: 套 | E19: 50000 | F19: 2150000 | G19: 2150000
A20: 目录内 汇总 | G20: 62147300
A21: 目录外 | B21: HA | C21: 16 | D21: 套 | E21: 36000 | F21: 576000 | G21: 576000
B22: HBA卡 | C22: 43 | D22: 个 | E22: 8500 | F22: 365500 | G22: 365500
B23: 安全测评费 | C23: 1 | D23: 套 | E23: 2070593.511 | F23: 2070593.511 | G23: 2070593.511
B24: 备份一体机 | C24: 1 | D24: 台 | E24: 600000 | F24: 600000 | G24: 600000
B25: 磁盘阵列 | C25: 2 | D25: 台 | E25: 450000 | F25: 900000 | G25: 900000
B26: 负载均衡 | C26: 2 | D26: 台 | E26: 300000 | F26: 600000 | G26: 600000
B27: 工程监理费 | C27: 1 | D27: 套 | E27: 1626894.902 | F27: 1626894.902 | G27: 1626894.902
B28: 工程预备费 | C28: 1 | D28: 套 | E28: 1722577.455 | F28: 1722577.455 | G28: 1722577.455
B29: 光纤交换机 | C29: 2 | D29: 台 | E29: 112000 | F29: 224000 | G29: 224000
B30: 日志审计 | C30: 1 | D30: 台 | E30: 300000 | F30: 300000 | G30: 300000
B31: 数据库读写分离组件 | C31: 3 | D31: 套 | E31: 80000 | F31: 240000 | G31: 240000
B32: 系统集成费 | C32: 1 | D32: 套 | E32: 5915981.461 | F32: 5915981.461 | G32: 5915981.461
B33: 应用系统迁移改造 | C33: 1 | D33: 套 | E33: 6394000 | F33: 6394000 | G33: 6394000
B34: 运维管理软件 | C34: 1 | D34: 套 | E34: 1082968.262 | F34: 1082968.262 | G34: 1082968.262
B35: 招标代理服务费 | C35: 1 | D35: 套 | E35: 236639.2584 | F35: 236639.2584 | G35: 236639.2584
B36: 服务器接入交换机(48口） | C36: 10 | D36: 台 | E36: 50000 | F36: 500000 | G36: 500000
B37: 服务器接入交换机（24口） | C37: 1 | D37: 台 | E37: 20000 | F37: 20000 | G37: 20000
B38: 项目管理费 | C38: 1 | D38: 套 | E38: 1478995.365 | F38: 1478995.365 | G38: 1478995.365
B39: 系统测评费 | C39: 1 | D39: 套 | E39: 850000 | F39: 850000 | G39: 850000
A40: 目录外 汇总 | G40: 25704150.22
A41: 总计 | G41: 87851450.22

Sheet 各单位服务器基础数据表 (hidden)
A1: 预算汇总表（服务器）
A2: 序号 | B2: 隶属单位 | C2: 系统名称 | D2: 类型 | E2: 服务内容/参数 | F2: 费用类型 | G2: 单位 | H2: 数量 | I2: 单价（元） | J2: 合价（元） | K2: 备注
A3: 1 | B3: 财政局 | C3: 顺义区财政局综合办公平台 | D3: 应用服务器 | E3: CPU>=32核心，2路，SSD硬盘>1T,Raid5 | F3: 购置费 | G3: 台 | H3: 2 | I3: 70000 | J3: =H3*I3 -> 140000
A4: 2 | B4: 财政局 | C4: 顺义区财政局综合办公平台 | D4: 数据库服务器 | E4: CPU>=32核心，2路，SSD硬盘>500G,HDD>2T(可用）Raid5 | F4: 购置费 | G4: 台 | H4: 2 | I4: 70000 | J4: 140000
A5: 3 | B5: 人大 | C5: 顺义区人大常委会协同办公平台 | D5: 应用服务器 | E5: CPU>=32核心，2路，SSD硬盘>1T,Raid5 | F5: 购置费 | G5: 台 | H5: 2 | I5: 70000 | J5: 140000
A6: 4 | B6: 人大 | C6: 顺义区人大常委会协同办公平台 | D6: 数据库服务器 | E6: CPU>=32核心，2路，SSD硬盘>500G,HDD>2T(可用）Raid5 | F6: 购置费 | G6: 台 | H6: 2 | I6: 70000 | J6: 140000
A7: 5 | B7: 天竺综合保税区 | C7: 顺义区天竺综合保税区管理委员会办公自动化整合系统 | D7: 应用服务器 | E7: CPU>=32核心，2路，SSD硬盘>1T,Raid5 | F7: 购置费 | G7: 台 | H7: 4 | I7: 70000 | J7: 280000
A8: 6 | B8: 天竺综合保税区 | C8: 顺义区天竺综合保税区管理委员会办公自动化整合系统 | D8: 数据库服务器 | E8: CPU>=32核心，2路，SSD硬盘>500G,HDD>2T(可用）Raid5 | F8: 购置费 | G8: 台 | H8: 4 | I8: 70000 | J8: 280000
A9: 7 | B9: 卫生健康委 | C9: 顺义区卫生健康委协同办公系统 | D9: 应用服务器 | E9: CPU>=32核心，2路，SSD硬盘>1T,Raid5 | F9: 购置费 | G9: 台 | H9: 2 | I9: 70000 | J9: 140000
A10: 8 | B10: 卫生健康委 | C10: 顺义区卫生健康委协同办公系统 | D10: 数据库服务器 | E10: CPU>=32核心，2路，SSD硬盘>500G,HDD>2T(可用）Raid5 | F10: 购置费 | G10: 台 | H10: 2 | I10: 70000 | J10: 140000
A11: 9 | B11: 信息中心 | C11: 电子政务办公服务平台 | D11: 应用服务器 | E11: CPU>=32核心，2路，SSD硬盘>1T,Raid5 | F11: 购置费 | G11: 台 | H11: 5 | I11: 70000 | J11: 350000
A12: 10 | B12: 信息中心 | C12: 电子政务办公服务平台 | D12: 数据库服务器 | E12: CPU>=32核心，2路，SSD硬盘>500G,HDD>2T(可用）Raid5 | F12: 购置费 | G12: 台 | H12: 5 | I12: 70000 | J12: 350000
A13: 11 | B13: 信息中心 | C13: 统一认证管理系统 | D13: 应用服务器 | E13: CPU>=32核心，2路，SSD硬盘>1T,Raid5 | F13: 购置费 | G13: 台 | H13: 3 | I13: 70000 | J13: 210000
A14: 12 | B14: 信息中心 | C14: 统一认证管理系统 | D14: 数据库服务器 | E14: CPU>=32核心，2路，SSD硬盘>500G,HDD>2T(可用）Raid5 | F14: 购置费 | G14: 台 | H14: 3 | I14: 70000 | J14: 210000
A15: 13 | B15: 交通局 | C15: 顺义区交通局综合办公平台 | D15: 应用服务器 | E15: CPU>=32核心，2路，SSD硬盘>1T,Raid5 | F15: 购置费 | G15: 台 | H15: 2 | I15: 70000 | J15: 140000
A16: 14 | B16: 交通局 | C16: 顺义区交通局综合办公平台 | D16: 数据库服务器 | E16: CPU>=32核心，2路，SSD硬盘>500G,HDD>2T(可用）Raid5 | F16: 购置费 | G16: 台 | H16: 2 | I16: 70000 | J16: 140000
A17: 15 | B17: 水务局 | C17: 顺义区水务局OA办公平台 | D17: 应用服务器 | E17: CPU>=32核心，2路，SSD硬盘>1T,Raid5 | F17: 购置费 | G17: 台 | H17: 2 | I17: 70000 | J17: 140000
A18: 16 | B18: 水务局 | C18: 顺义区水务局OA办公平台 | D18: 数据库服务器 | E18: CPU>=32核心，2路，SSD硬盘>500G,HDD>2T(可用）Raid5 | F18: 购置费 | G18: 台 | H18: 2 | I18: 70000 | J18: 140000
A19: 17 | B19: 统计局 | C19: 北京市顺义区统计局办公自动化 | D19: 应用服务器 | E19: CPU>=32核心，2路，SSD硬盘>1T,Raid5 | F19: 购置费 | G19: 台 | H19: 2 | I19: 70000 | J19: 140000
A20: 18 | B20: 统计局 | C20: 北京市顺义区统计局办公自动化 | D20: 数据库服务器 | E20: CPU>=32核心，2路，SSD硬盘>500G,HDD>2T(可用）Raid5 | F20: 购置费 | G20: 台 | H20: 2 | I20: 70000 | J20: 140000
A21: 19 | B21: 民政局 | C21: 顺义区民政局办公平台 | D21: 应用服务器 | E21: CPU>=32核心，SSD硬盘>1T,Raid5 | F21: 购置费 | G21: 台 | H21: 2 | I21: 70000 | J21: 140000
A22: 20 | B22: 民政局 | C22: 顺义区民政局办公平台 | D22: 数据库服务器 | E22: CPU>=32核心，2路，SSD硬盘>500G,HDD>2T(可用）Raid5 | F22: 购置费 | G22: 台 | H22: 2 | I22: 70000 | J22: 140000
A23: 21 | B23: 人社局 | C23: 顺义区人力社保局办公平台 | D23: 应用服务器 | E23: CPU>=32核心，2路，SSD硬盘>1T,Raid5 | F23: 购置费 | G23: 台 | H23: 2 | I23: 70000 | J23: 140000
A24: 22 | B24: 人社局 | C24: 顺义区人力社保局办公平台 | D24: 数据库服务器 | E24: CPU>=32核心，2路，SSD硬盘>500G,HDD>2T(可用）Raid5 | F24: 购置费 | G24: 台 | H24: 2 | I24: 70000 | J24: 140000
A25: 23 | B25: 投资中心 | C25: 区投资中心办公系统 | D25: 应用服务器 | E25: CPU>=32核心，2路，SSD硬盘>1T,Raid5 | F25: 购置费 | G25: 台 | H25: 2 | I25: 70000 | J25: 140000
A26: 24 | B26: 投资中心 | C26: 区投资中心办公系统 | D26: 数据库服务器 | E26: CPU>=32核心，2路，SSD硬盘>500G,HDD>2T(可用）Raid5 | F26: 购置费 | G26: 台 | H26: 2 | I26: 70000 | J26: 140000
A27: 25 | B27: 网信办 | C27: 区委网信办互联网工作平台 | D27: 应用服务器 | E27: CPU>=32核心，2路，SSD硬盘>1T,Raid5 | F27: 购置费 | G27: 台 | H27: 2 | I27: 70000 | J27: 140000
A28: 26 | B28: 网信办 | C28: 区委网信办互联网工作平台 | D28: 数据库服务器 | E28: CPU>=32核心，2路，SSD硬盘>500G,HDD>2T(可用）Raid5 | F28: 购置费 | G28: 台 | H28: 2 | I28: 70000 | J28: 140000
A29: 27 | B29: 党校 | C29: 中共北京市顺义区委党校信息系统 | D29: 应用服务器 | E29: CPU>=32核心，2路，SSD硬盘>1T,Raid5 | F29: 购置费 | G29: 台 | H29: 2 | I29: 70000 | J29: 140000
A30: 28 | B30: 党校 | C30: 中共北京市顺义区委党校信息系统 | D30: 数据库服务器 | E30: CPU>=32核心，2路，SSD硬盘>500G,HDD>2T(可用）Raid5 | F30: 购置费 | G30: 台 | H30: 2 | I30: 70000 | J30: 140000
A31: 29 | B31: 系统自用 | C31: 运维管理 | D31: 应用服务器 | E31: CPU>=32核心，2路，SSD硬盘>1T,Raid5 | F31: 购置费 | G31: 台 | H31: 1 | I31: 70000 | J31: 70000
A32: 30 | B32: 系统自用 | C32: 运维管理 | D32: 数据库服务器 | E32: CPU>=32核心，2路，SSD硬盘>500G,HDD>2T(可用）Raid5 | F32: 购置费 | G32: 台 | H32: 1 | I32: 70000 | J32: 70000
A33: 31 | B33: 系统自用 | C33: 杀毒软件 | D33: 应用服务器 | E33: CPU>=32核心，2路，SSD硬盘>1T,Raid5 | F33: 购置费 | G33: 台 | H33: 1 | I33: 70000 | J33: 70000
A34: 32 | B34: 系统自用 | C34: 杀毒软件 | D34: 数据库服务器 | E34: CPU>=32核心，2路，SSD硬盘>500G,HDD>2T(可用）Raid5 | F34: 购置费 | G34: 台 | H34: 1 | I34: 70000 | J34: 70000
A35: 合计 | H35: =SUM(H3:H34) -> 72 | J35: =SUM(J3:J34) -> 5040000

Sheet 系统迁移工作量估算 (hidden)
A1: 序号 | B1: 名称 | C1: 操作系统 | D1: 开发平台 | E1: 应用服务器 | F1: 数据库服务器 | G1: 表数量 | H1: 存储过程数量 | I1: 视图数量 | J1: 触发器数量 | K1: 程序内部修改 | L1: 浏览器修改 | M1: 人月成本 | N1: 合计成本 | O1: 计算公式
A2: 1 | B2: 顺义区财政局综合办公平台 | C2: Linux | D2: JAVA | E2: Tomcat | F2: Oracle | G2: 100 | H2: 6 | I2: 13 | J2: 16 | K2: 550 | L2: 200 | M2: =人月成本 -> 20000 | N2: =G2*+单表投入人月+H2*+存储过程+I2*+视图+J2*+触发器+K2*+程序修改+L2*界面适配 -> 15.625 | O2: =N2*M2 -> 312500
A3: 2 | B3: 顺义区人大常委会协同办公平台 | C3: Linux | D3: JAVA | E3: Tomcat | F3: Oracle | G3: 100 | H3: 8 | I3: 13 | J3: 15 | K3: 500 | L3: 200 | M3: 20000 | N3: 14.9 | O3: 298000
A4: 3 | B4: 顺义区天竺综合保税区管理委员会办公自动化整合系统 | C4: Windows | D4: JAVA | E4: Tomcat | F4: Oracle | G4: 200 | H4: 20 | I4: 30 | J4: 50 | K4: 640 | L4: 400 | M4: 20000 | N4: 25.1 | O4: 502000
A5: 4 | B5: 顺义区卫生健康委协同办公系统 | C5: Linux | D5: JAVA | E5: JBOSS | F5: Oracle | G5: 140 | H5: 20 | I5: 15 | J5: 15 | K5: 600 | L5: 200 | M5: 20000 | N5: 16.95 | O5: 339000
A6: 5 | B6: 电子政务办公服务平台 | C6: Linux | D6: JAVA | E6: Tomcat | F6: Oracle | G6: 300 | H6: 20 | I6: 15 | J6: 20 | K6: 640 | L6: 400 | M6: 20000 | N6: 24.475 | O6: 489500
A7: 6 | B7: 统一认证管理系统 | C7: Linux | D7: JAVA | E7: Tomcat | F7: MYSQL | G7: 200 | H7: 5 | I7: 20 | J7: 20 | K7: 600 | L7: 400 | M7: 20000 | N7: 23.125 | O7: 462500
A8: 7 | B8: 顺义区交通局综合办公平台 | C8: Windows | D8: JAVA | E8: JBOSS | F8: SQL Server | G8: 100 | H8: 0 | I8: 15 | J8: 0 | K8: 510 | L8: 200 | M8: 20000 | N8: 14.525 | O8: 290500
A9: 8 | B9: 顺义区水务局OA办公平台 | C9: Linux | D9: JAVA | E9: Tomcat | F9: MYSQL | G9: 100 | H9: 5 | I9: 10 | J9: 6 | K9: 500 | L9: 200 | M9: 20000 | N9: 14.525 | O9: 290500
A10: 9 | B10: 北京市顺义区统计局办公自动化 | C10: Windows | D10: PHP JAVA | E10: PHP Tomcat | F10: MYSQL | G10: 100 | H10: 0 | I10: 15 | J10: 15 | K10: 550 | L10: 240 | M10: 20000 | N10: 16.7 | O10: 334000
A11: 10 | B11: 顺义区民政局办公平台 | C11: Windows | D11: JAVA | E11: Tomcat | F11: MYSQL | G11: 100 | H11: 3 | I11: 15 | J11: 12 | K11: 530 | L11: 200 | M11: 20000 | N11: 15.2 | O11: 304000
A12: 11 | B12: 顺义区人力社保局办公平台 | C12: Linux | D12: JAVA | E12: Tomcat | F12: Oracle | G12: 100 | H12: 14 | I12: 5 | J12: 12 | K12: 550 | L12: 200 | M12: 20000 | N12: 15.525 | O12: 310500
A13: 12 | B13: 区投资中心办公系统 | C13: Linux | D13: JAVA | E13: JBOSS | F13: SQL Server | G13: 200 | H13: 10 | I13: 4 | J13: 15 | K13: 500 | L13: 200 | M13: 20000 | N13: 15.225 | O13: 304500
A14: 13 | B14: 区委网信办互联网工作平台 | C14: Windows | D14: JAVA | E14: Tomcat | F14: MySQL | G14: 100 | H14: 0 | I14: 15 | J14: 15 | K14: 500 | L14: 200 | M14: 20000 | N14: 14.75 | O14: 295000
A15: 14 | B15: 中共北京市顺义区委党校信息系统 | C15: WIndows | D15: JAVA | E15: resin | F15: MYSQL | G15: 100 | H15: 0 | I15: 15 | J15: 0 | K15: 500 | L15: 200 | M15: 20000 | N15: 14.375 | O15: 287500
O16: =SUM(O2:O15) -> 4820000
B18: 单表投入人月 | C18: 0.005 | D18: =人月成本*C18 -> 100 | O18: ='实施方案-系统迁移费'!I144 -> 6394000
B19: 存储过程 | C19: 0.025 | D19: 500 | O19: =O18-O16 -> 1574000
B20: 视图 | C20: 0.025 | D20: 500
B21: 触发器 | C21: 0.025 | D21: 500
B22: 程序修改 | C22: 0.015 | D22: 300
B23: 界面适配 | C23: 0.03 | D23: 600
B25: 表修改 | C25: 1、重新定义表结构 2、自定义数据类型 3、规则、默认值等 4、编写数据迁移线程
B26: 视图 | C26: 调整视图定义
B27: 存储过程 | C27: 修改存储过程代码
B28: 触发器 | C28: 修改触发器代码
B29: 程序修改 | C29: 1、修改程序内部数据库链接接 2、修改程序内部特征性依赖，适用于新的应用服务器、JDK 3、修改程序内部数据处理逻辑
B30: 界面适配 | C30: 1、修改界面内部HTML，符合安全可靠环境HTML标准 2、修改程序内部JAVASCript代码，浏览器引擎规范 3、修改浏览器插件，符合安全可靠应用 4、修改浏览器，支持特殊应用

Sheet 内插法计算公式 (hidden)
A1: =5000*10^4 -> 50000000 | B1: 120.8
A2: =8000*10^4 -> 80000000 | B2: 181
A4: 1592511.972
B7: =(B2-B1)/(A2-A1) -> 2.006666667e-06
B8: ='预算汇总表（打印）'!H37-A1 -> 
B9: =B7*B8+B1 -> 

Sheet 基础参数表 (hidden)
A1: 人月成本 | B1: 20000
A2: 台式机价格

Sheet 工作表20 (hidden)
A1: 预算汇总表
A2: 序号 | B2: 名称 | C2: 主要技术参数/服务内容 | D2: 费用类型 | E2: 单位 | F2: 数量 | G2: 单价（元） | H2: 合价（元）
A3: 一 | B3: 网络设备
A4: 1 | B4: 服务器接入交换机 | C4: 1、使用国产自主安全CPU和交换芯片，千兆电接口≥48个，10G的SFP+光接口≥6个，100G光接口≥2个，配置模块化冗余电源； 2、交换容量≥600Gbps；包转发率≥370Mpps； 3、支持静态路由、RIP、OSPF、BGP等动态路由协议； 4、支持MPLS L3 VPN，支持虚拟化功能； 5、支持配置文件加密，保护设备配置信息泄漏，支持Telnet、Console、SNMP等管理方式。 | D4: 一次性 | E4: 台 | F4: 10 | G4: 50000 | H4: =G4*F4 -> 500000
A5: 2 | B5: 服务器接入交换机 | C5: 1、使用国产自主安全CPU和交换芯片，交换容量≥160Gbps；包转发率≥100Mpps； 2、千兆电接口≥24个，SFP千兆光接口≥4个，SFP+万兆光接口≥4个，配置1+1冗余模块化电源； 3、支持静态路由、RIP路由协议； 4、支持Telnet、Console、SNMP等管理方式，支持配置文件国密算法加密，防护设备配置环境信息泄漏。 | D5: 一次性 | E5: 台 | F5: 1 | G5: 20000 | H5: 20000
A6: 二 | B6: 服务器设备
A7: 1 | B7: 服务器 | C7: CPU：主频≥1.45GHz，核数≥4 内存：容量≥32GB 硬盘：容量≥2TB， 盘位数不少于8盘位； 支持RAID 0/1/5 服务：提供3年整机质保，7*24小时电话响应支持。 | D7: 一次性 | E7: 台 | F7: 87 | G7: 70000 | H7: 6090000
A8: 2 | B8: HBA卡 | C8: 用于连接服务器&光纤交换机；接口类型：16Gbps； | D8: 一次性 | E8: 个 | F8: 43 | G8: 8500 | H8: 365500
A9: 3 | B9: 负载均衡 | C9: 标配8个固定千兆电口（RJ45）, 4个万兆位SFP+光纤端口，可支持4口千兆电口或光口扩展支持IPv4/v6、NAT、MPLS、OSPF、RIP、动态/静态路由等技术4层吞吐量大于等于10G并发会话数大于1200万，四层每秒新建会话数大于35万，新建会话数大于18万。对连接时间较长的应用业务，可主动拆除连接，按照预定策略重新负载新建连接采用国产交换芯片的专用硬件平台，软件平台拥有国产内核使用授权，内存为32GB DDR3 ECC，256GB固态硬盘，交流供电，支持1+1冗余； | D9: 一次性 | E9: 台 | F9: 2 | G9: 300000 | H9: 600000
A10: 三 | B10: 存储设备
A11: 1 | B11: 光纤交换机 | C11: 48口16Gbps FC交换机；48端口激活；满配16Gbps多模光模块，双热插拔冗余电源；带风扇； | D11: 一次性 | E11: 台 | F11: 2 | G11: 112000 | H11: =G11*F11 -> 224000
A12: 2 | B12: 备份一体机 | C12: 机架式国产处理器（核心数≥8核，主频≥1.5GHz），不小于64G DDR3 RAM，50TB存储空间，4*1GE电口，含备份管理软件，支持无限备份客户端数量，支持数据库备份和回复，实现操作系统下的整机备份和裸机恢复，支持文件备份和恢复。支持对主流及国产化数据库周期备份、增量备份、重删等功能，3年质保服务； | D12: 一次性 | E12: 台 | F12: 1 | G12: 600000 | H12: 600000
A13: 3 | B13: 磁盘阵列 | C13: 双控制器（国产CPU），国产操作系统，配置高速缓存≥256GB，配置8个1Gb iSCSI接口、8个16Gbps FC接口，配置存储容量约50T SAS硬盘； | D13: 一次性 | E13: 台 | F13: 2 | G13: 450000 | H13: 900000
A14: 四 | B14: 安全设备
A15: 1 | B15: 防火墙 | C15: 标准2U机箱，冗余电源；产品支持透明传输、路由转发模式部署，支持路由设置、高可用性等组网与部署能力；提供包过滤、地址转换、状态检测、动态开放端口、带宽管理、连接数控制等网络层访问控制功能；提供应用类型控制、应用关键内容控制等应用层控制功能；提供拒绝服务攻击防护、恶意代码防护、应用攻击防护等功能； | D15: 一次性 | E15: 台 | F15: 2 | G15: 105400 | H15: =G15*F15 -> 210800
A16: 2 | B16: 病毒防治系统 | C16: 含1套管理平台；不少于4376个终端授权；用于服务器端和终端的恶意代码防范、病毒入侵防范； | D16: 一次性 | E16: 套 | F16: 1 | G16: =1.4*10000+400*4463 -> 1799200 | H16: 1799200
A17: 3 | B17: 日志审计 | C17: 2U标准机架式，冗余电源，专用千兆硬件平台和安全操作系统，6个千兆电口，1个管理口，标配采用Raid5，有效存储容量4TB。提供采集各种不同厂商的安全设备、网络设备、主机、操作系统、以及各种应用系统产生的日志信息，汇集到审计中心，通过解析过滤归并后统一呈现，支持自定义条件查询和策略查询，支持深度关联分析自定义关联规则进行审计分析，支持告警和自定义报表等功能。默认支持100个审计对象授权，综合处理性能达6300EPS； | D17: 一次性 | E17: 台 | F17: 1 | G17: 300000 | H17: 300000
A18: 4 | B18: 数据库审计 | C18: 能够对网络环境中的数据库管理系统的数据操作、结构操作和用户更改等行为进行审计和分析。提供了按条件查询审计记录、统计分析、潜在危害分析、事件分级和告警响应等功能；国产CPU，国产操作系统，内存8GB，硬盘1TB，网络接口：1个管理口、5个千兆电口、4个千兆光口、2个万兆光口；标准机架式机箱； | D18: 一次性 | E18: 台 | F18: 1 | G18: 150000 | H18: 150000
A19: 五 | B19: 终端及外设
A20: 1 | B20: 安全可靠终端（台式） | C20: 国产化CPU； 支持国产化操作系统； CPU：主频≥1.8GHz，核数≥4 内存：容量≥8GB 硬盘：容量≥256GB，SSD 独立显卡 显示器：≥23.8英寸 服务：3年整机质保，提供1年上门服务，7*24小时电话响应支持。 | D20: 一次性 | E20: 台 | F20: =#REF! ->  | G20: 6500 | H20: =G20*F20 -> 
A21: 2 | B21: 安全可靠终端（笔记本） | C21: 国产CPU； 支持国产操作系统； CPU：1.2GHZ； 内存：≥4GB； 硬盘：≥128GB,SSD； 独显，显示器：≥14英寸 服务：3年整机质保，提供1年上门服务，7*24小时电话响应支持。 | D21: 一次性 | E21: 台 | F21: =#REF! ->  | G21: 8500
A22: 3 | B22: 彩色打印机 | C22: A4彩色多功能打印扫描一体机，具备文字文档打印、图片打印、份数设置、范围设置、页边距设置、缩放打印设置、打印队列管理等基本功能，支持彩色扫描/复印,双面打印。 平均一分钟打印不小于24页；符合GB/T17540-2017《台式激光打印机通用规范》、GB／T28166-2011《馈纸式扫描仪通用规范》和基础通用产品打印机、扫描仪测试规范的要求。 处理器数量≥1，处理器主频≥800MHz,内存≥512MB； 提供3年原厂技术设备免费保修及维护服务，7*24小时电话响应支持。根据CPU芯片和操作系统升级以及安可替代工程产品目录更新，提供3年内免费适配服务。 | D22: 一次性 | E22: 台 | F22: =#REF! ->  | G22: 9800
A23: 5 | B23: 红黑打印机 | C23: A4红黑单功能打印机，具备文字文档打印、图片打印、份数设置、范围设置、页边距设置、缩放打印设置、打印队列管理等基本功能，支持网络打印、红黑打印。 平均一分钟打印不小于28页；符合GB/T17540-2017《台式激光打印机通用规范》和基础通用产品打印机测试规范的要求。 处理器数量≥1，处理器主频≥266MHz,内存≥128MB 提供3年免费升级服务，7*24小时电话响应支持。根据CPU芯片和操作系统升级以及安可替代工程产品目录更新，提供3年内免费适配服务。 | D23: 一次性 | E23: 台 | F23: =#REF! ->  | G23: 6200
A24: 六 | B24: 系统软件
A25: 1 | B25: 笔记本操作系统 | C25: 终端操作系统；兼容国产化CPU；具备设备管理、文件系统管理、用户管理、个性化设置等基本功能。 | D25: 一次性 | E25: 套 | F25: 398 | G25: 600 | H25: =G25*F25 -> 238800
A26: 2 | B26: 台式机操作系统 | C26: 终端操作系统；兼容国产化CPU；具备设备管理、文件系统管理、用户管理、个性化设置等基本功能。 | D26: 一次性 | E26: 套 | F26: 3978 | G26: 600 | H26: 2386800
A27: 3 | B27: 服务器操作系统 | C27: 服务器操作系统；兼容国产化CPU；具备文件管理、设备管理、日志管理、服务管理、进程和监控管理、网络管理、资源管理、软件包管理、硬盘管理等基本功能；提供语言支持工具、文件共享工具、集成开发平台等共享服务工具； | D27: 一次性 | E27: 套 | F27: 87 | G27: 7500 | H27: 652500
A28: 4 | B28: 数据库 | C28: 具备数据存储、访问控制、身份鉴别、安全审计和数据备份恢复等功能。产品部署在服务器，以后以服务形式运行，数据库管理员及用户在管理主机上通过图形化管理工具或命令行工具，可实现对数据对象（表、视图、约束、索引、触发器、存储过程等）的配置管理；开发人员可通过标准化数据库访问接口，开发基于数据库的应用系统和软件产品。 提供1年免费升级服务，7*24小时电话响应支持。根据CPU芯片和操作系统审计以及安可替代工程产品目录更新，提供3年内免费适配服务。 | D28: 一次性 | E28: 套 | F28: 44 | G28: 120000 | H28: 5280000
A29: 5 | B29: 应用中间件 | C29: 具备Web应用、EJB应用、虚拟主机、应用服务器集群、身份验证、日志审计等基本工作，提供类库管理、集成环境管理、图形化监控、JVM配置、垃圾回收配置等工具，支持实例部署、数据库连接服务，为业务系统提供运行环境。 提供1年免费升级服务，7*24小时电话响应支持。根据CPU芯片和操作系统审计以及安可替代工程产品目录更新，提供3年内免费适配服务。 | D29: 一次性 | E29: 套 | F29: 43 | G29: 50000 | H29: 2150000
A30: 6 | B30: HA | C30: 秒级容错技术能够有效地使被保护服务资源在极端的时间内完成切换任务，满足应用的持续性服务要求；任何一个节点出现故障，都可以在极短的时间内进行自动切换，当故障排除后，服务自动回迁，提供7*24小时永不停机的企业级应用可靠保障；支持双机热备，双机互备，多机备份等多种运行保护方式，用以满足各种应用保护需求； | D30: 一次性 | E30: 套 | F30: 16 | G30: 36000 | H30: 576000
A31: 7 | B31: 数据库读写分离组件 | C31: 支持对国产化数据库进行读写分离管理；支持国产化操作系统部署； | D31: 一次性 | E31: 套 | F31: 3 | G31: 80000 | H31: 240000
A32: 8 | B32: 运维管理软件 | C32: 支持国产化操作系统部署环境；实现安全可靠的网络、服务器、中间件、业务系统等统一管理运维； | D32: 一次性 | E32: 套 | F32: 1 | G32: =#REF! -> 
A33: 10 | B33: 流式软件 | C33: 具备主界面、文件管理、页面设置、视图管理、编辑管理、插入管理、格式管理、工具、表格管理、对象管理、审阅管理、引用管理、插件管理、打印管理等基本功能，提供文字处理、电子表格、文档演示三大应用，支持PDF阅读和流版转换，支持国内外文档标准规范，兼容国内外主流流式软件。提供1年免费升级服务，7*24小时电话响应支持。根据CPU芯片和操作系统升级以及安可替代工程产品目录更新，提供3年内免费适配服务。 | D33: 一次性 | E33: 套 | F33: 4376 | G33: 580 | H33: 2538080
A34: 11 | B34: 版式软件 | C34: 具备主页管理、文件管理、页面管理、注释管理、试图管理、编辑管理、语义管理、签章管理、插件管理、打印管理等基本功能，支持水印、流版转换，兼容国内外主流版式软件。并可作为浏览器组件集成到业务应用系统中，实现文件签批、模板套打等公务扩展功能。 提供1年免费升级服务，7*24小时电话响应支持。根据CPU芯片和操作系统升级以及安可替代工程产品目录更新，提供3年内免费适配服务。 | D34: 一次性 | E34: 套 | F34: 4376 | G34: 520 | H34: 2275520
A35: 七 | B35: 应用软件
A36: 1 | B36: 应用系统迁移改造 | D36: 一次性 | E36: 套 | F36: 1 | G36: ='实施方案-系统迁移费'!I144 -> 6394000 | H36: =G36*F36 -> 6394000
B37: 小计 | H37: =SUM(H4:H36) -> 
A38: 八 | B38: 系统集成费
A39: 1 | B39: 系统集成费 | C39: 根据中办安全可靠替代系统集成标准，取硬件设备购置费、软件购置费与应用开发费之和的8%作为系统集成费 | D39: 一次性 | E39: 套 | F39: 1 | G39: =H37*0.08 ->  | H39: =F39*G39 -> 
A40: 九 | B40: 工程建设其他费用
A41: 1 | B41: 建设单位管理费 | C41: 参考《基本建设财务管理规定》财建〔2016〕504号计算 | D41: 一次性 | E41: 套 | F41: 1 | G41: =H37*0.02 -> 
A42: 2 | B42: 工程监理费 | C42: 参考《建设工程监理与相关服务收费管理规定》（发改价格[2007]670号）计取 | D42: 一次性 | E42: 套 | F42: 1 | G42: =H37*0.022 -> 
A43: 3 | B43: 招标代理服务费 | D43: 一次性 | E43: 套 | F43: 1 | G43: =H37*0.0032 -> 
A44: 4 | B44: 软件测评费 | C44: 市场咨询 | D44: 一次性 | E44: 套 | F44: 1 | G44: 850000 | H44: 850000
A45: 5 | B45: 安全测评费 | C45: 市场咨询 | D45: 一次性 | E45: 套 | F45: 1 | G45: =H37*0.028 -> 
B46: 小计 | H46: =SUM(H39:H45) -> 
A47: 十 | B47: 工程预备费
A48: 1 | B48: 工程预备费 | C48: (硬件设备购置费+软件购置费+应用系统开发费+系统集成费+工程建设其它费)×预备费率，预备费率取定为2%。 | D48: 一次性 | E48: 套 | F48: 1 | G48: =SUM(H46+H37)*0.02 ->  | H48: =F48*G48 -> 
B49: 小计 | H49: =SUM(H48) -> 
A50: 合计 | H50: =SUM(H37+H46+H49) -> 
